Workbook

Sheet random picks
B2: BYRON | C2: JOHN C | D2: MIKE H | E2: STEVER | F2: ROB W | G2: CRAIG T | H2: ANDY W | I2: STU D
A3: Random number generator for pick order
B4: =B2 -> BYRON | C4: =C2 -> JOHN C | D4: MIKE H | E4: STEVER | F4: ROB W | G4: CRAIG T
A5: R1 | B5: =RAND() -> 0.05702728643 | C5: =RAND() -> 0.4955744214 | D5: 0.08919795453 | E5: 0.1136468081 | F5: 0.5115206581 | G5: 0.7834757027
A6: R2 | B6: 0.945657602 | C6: 0.1909024255 | D6: 0.9572547505 | E6: 0.3255866992 | F6: 0.2306718284 | G6: 0.7271629844
A7: R3 | B7: 0.9301175038 | C7: 0.269474781 | D7: 0.6069377666 | E7: 0.04232098068 | F7: 0.8497937409 | G7: 0.7358840531
A8: R4 | B8: 0.7159910025 | C8: 0.762545996 | D8: 0.8688401414 | E8: 0.3622970144 | F8: 0.3455145292 | G8: 0.1884732171
A9: R5 | B9: 0.857338842 | C9: 0.6508196108 | D9: 0.2596764843 | E9: 0.6689688396 | F9: 0.8195593766 | G9: 0.09356991616
A10: R1 | B10: =RANK(B5,$B5:$L5) -> 6 | C10: 3 | D10: 5 | E10: 4 | F10: 2 | G10: 1
A11: R2 | B11: 2 | C11: 6 | D11: 1 | E11: 4 | F11: 5 | G11: 3
A12: R3 | B12: 1 | C12: 5 | D12: 4 | E12: 6 | F12: 2 | G12: 3
A13: R4 | B13: 3 | C13: 2 | D13: 1 | E13: 4 | F13: 5 | G13: 6
A14: R5 | B14: 1 | C14: 4 | D14: 5 | E14: 3 | F14: 2 | G14: 6
B15: =B2 -> BYRON | C15: =C2 -> JOHN C | D15: MIKE H | E15: STEVER | F15: ROB W | G15: CRAIG T | H15: ANDY W
A16: R1 | B16: =RAND() -> 0.1562535118 | C16: =RAND() -> 0.1896858058 | D16: 0.1597415449 | E16: 0.2836744184 | F16: 0.5997802303 | G16: 0.1996542795 | H16: 0.7811482324
A17: R2 | B17: 0.1868493343 | C17: 0.06811518504 | D17: 0.04704580113 | E17: 0.07739314703 | F17: 0.3310522263 | G17: 0.3017427855 | H17: 0.9496110725
A18: R3 | B18: 0.2352461072 | C18: 0.5642553731 | D18: 0.3710127178 | E18: 0.5642773323 | F18: 0.6014562339 | G18: 0.9003447728 | H18: 0.2193533586
A19: R4 | B19: 0.4143719042 | C19: 0.6094024837 | D19: 0.1156613368 | E19: 0.7148312459 | F19: 0.2797940992 | G19: 0.1587273175 | H19: 0.8416297844
A20: R5 | B20: 0.5560473466 | C20: 0.378391847 | D20: 0.6413659707 | E20: 0.406674211 | F20: 0.7251942074 | G20: 0.5194886017 | H20: 0.2186203486
A21: R1 | B21: =RANK(B16,$B16:$L16) -> 7 | C21: 5 | D21: 6 | E21: 3 | F21: 2 | G21: 4 | H21: 1
A22: R2 | B22: 4 | C22: 6 | D22: 7 | E22: 5 | F22: 2 | G22: 3 | H22: 1
A23: R3 | B23: 6 | C23: 4 | D23: 5 | E23: 3 | F23: 2 | G23: 1 | H23: 7
A24: R4 | B24: 4 | C24: 3 | D24: 7 | E24: 2 | F24: 5 | G24: 6 | H24: 1
A25: R5 | B25: 3 | C25: 6 | D25: 2 | E25: 5 | F25: 1 | G25: 4 | H25: 7
B26: =B2 -> BYRON | C26: =C2 -> JOHN C | D26: MIKE H | E26: STEVER | F26: ROB W | G26: CRAIG T | H26: ANDY W | I26: STU D
A27: R1 | B27: =RAND() -> 0.1352112554 | C27: =RAND() -> 0.3156462979 | D27: 0.7097947126 | E27: 0.9573899038 | F27: 0.4677534158 | G27: 0.8474290943 | H27: 0.7942654259 | I27: 0.6020254204
A28: R2 | B28: 0.8071418757 | C28: 0.1783054632 | D28: 0.2679085876 | E28: 0.3005358241 | F28: 0.02217413093 | G28: 0.4712063722 | H28: 0.9502569356 | I28: 0.4411153483
A29: R3 | B29: 0.2689768721 | C29: 0.9546806672 | D29: 0.3836405297 | E29: 0.5908371713 | F29: 0.5779328979 | G29: 0.04881510444 | H29: 0.8228084249 | I29: 0.3244192155
A30: R4 | B30: 0.2673697377 | C30: 0.2487294075 | D30: 0.7895114694 | E30: 0.9988834949 | F30: 0.8060577904 | G30: 0.4847493059 | H30: 0.3575369172 | I30: 0.2146015013
A31: R5 | B31: 0.9316028351 | C31: 0.3245305248 | D31: 0.7548800743 | E31: 0.0594167135 | F31: 0.4195033872 | G31: 0.8860721545 | H31: 0.04550955398 | I31: 0.8464038794
A32: R1 | B32: =RANK(B27,$B27:$L27) -> 8 | C32: 7 | D32: 4 | E32: 1 | F32: 6 | G32: 2 | H32: 3 | I32: =RANK(I27,$B27:$L27) -> 5
A33: R2 | B33: 2 | C33: 7 | D33: 6 | E33: 5 | F33: 8 | G33: 3 | H33: 1 | I33: 4
A34: R3 | B34: 7 | C34: 1 | D34: 5 | E34: 3 | F34: 4 | G34: 8 | H34: 2 | I34: 6
A35: R4 | B35: 6 | C35: 7 | D35: 3 | E35: 1 | F35: 2 | G35: 4 | H35: 5 | I35: 8
A36: R5 | B36: 1 | C36: 6 | D36: 4 | E36: 7 | F36: 5 | G36: 2 | H36: 8 | I36: 3
B37: =B2 -> BYRON | C37: =C2 -> JOHN C | D37: MIKE H | E37: STEVER | F37: ROB W | G37: CRAIG T | H37: ANDY W | I37: STU D | J37: 0
A38: R1 | B38: =RAND() -> 0.5852210622 | C38: 0.2427682889 | D38: 0.4854317451 | E38: 0.8209985336 | F38: 0.4625349703 | G38: 0.5504079396 | H38: 0.4238107703 | I38: 0.9369299962 | J38: 0.6034120954
A39: R2 | B39: 0.5431279493 | C39: 0.9607021333 | D39: 0.5136405296 | E39: 0.1966935371 | F39: 0.5170595186 | G39: 0.4461762855 | H39: 0.6076814324 | I39: 0.1158004305 | J39: 0.6384251153
A40: R3 | B40: 0.1780576203 | C40: 0.8280219064 | D40: 0.8824418589 | E40: 0.4512885176 | F40: 0.5780929374 | G40: 0.1319435982 | H40: 0.7620113591 | I40: 0.3216637821 | J40: 0.02507111621
A41: R4 | B41: 0.458267706 | C41: 0.9279266385 | D41: 0.7009700235 | E41: 0.3361085891 | F41: 0.2342076666 | G41: 0.2197120174 | H41: 0.7604610732 | I41: 0.250023948 | J41: 0.04483989158
A42: R5 | B42: 0.6680761731 | C42: 0.5183394143 | D42: 0.9398009757 | E42: 0.5500567667 | F42: 0.6548657506 | G42: 0.2016903107 | H42: 0.2121718764 | I42: 0.8048964953 | J42: 0.08061578094
A43: R1 | B43: =RANK(B38,$B38:$L38) -> 4 | C43: 9 | D43: 6 | E43: 2 | F43: 7 | G43: 5 | H43: 8 | I43: 1 | J43: 3
A44: R2 | B44: =RANK(B39,$B39:$L39) -> 4 | C44: 1 | D44: 6 | E44: 8 | F44: 5 | G44: 7 | H44: 3 | I44: 9 | J44: 2
A45: R3 | B45: =RANK(B40,$B40:$L40) -> 7 | C45: 2 | D45: 1 | E45: 5 | F45: 4 | G45: 8 | H45: 3 | I45: 6 | J45: 9
A46: R4 | B46: =RANK(B41,$B41:$L41) -> 4 | C46: 1 | D46: 3 | E46: 5 | F46: 7 | G46: 8 | H46: 2 | I46: 6 | J46: 9
A47: R5 | B47: =RANK(B42,$B42:$L42) -> 3 | C47: 6 | D47: 1 | E47: 5 | F47: 4 | G47: 8 | H47: 7 | I47: 2 | J47: 9
B48: =B2 -> BYRON | C48: =C2 -> JOHN C | D48: MIKE H | E48: STEVER | F48: ROB W | G48: CRAIG T | H48: ANDY W | I48: STU D | J48: 0 | K48: =K2 -> 0
A49: R1 | B49: =RAND() -> 0.1427835111 | C49: 0.07984413746 | D49: 0.5257114609 | E49: 0.4717088227 | F49: 0.6252952312 | G49: 0.9183664298 | H49: 0.5534409982 | I49: 0.8049923156 | J49: 0.04850787002 | K49: 0.1756132115
A50: R2 | B50: 0.4457604778 | C50: 0.2593861957 | D50: 0.6646538052 | E50: 0.9052474527 | F50: 0.4031881116 | G50: 0.5319001224 | H50: 0.5793914003 | I50: 0.09174970815 | J50: 0.7881040074 | K50: 0.7708180802
A51: R3 | B51: 0.3007450016 | C51: 0.6450050259 | D51: 0.02607888743 | E51: 0.08599928323 | F51: 0.8999290744 | G51: 0.3190982229 | H51: 0.2201582982 | I51: 0.9221895709 | J51: 0.8673351903 | K51: 0.9852731827
A52: R4 | B52: 0.6279660546 | C52: 0.3013815753 | D52: 0.6274694059 | E52: 0.9065635611 | F52: 0.08777738343 | G52: 0.2282491246 | H52: 0.5667672812 | I52: 0.4079495228 | J52: 0.01617523857 | K52: 0.599810745
A53: R5 | B53: 0.4830877645 | C53: 0.04100275358 | D53: 0.3913756667 | E53: 0.6402122311 | F53: 0.7177219178 | G53: 0.3767980922 | H53: 0.8347477396 | I53: 0.5106657879 | J53: 0.6358172048 | K53: 0.3887246336
A54: R1 | B54: =RANK(B49,$B49:$L49) -> 8 | C54: 9 | D54: 5 | E54: 6 | F54: 3 | G54: 1 | H54: 4 | I54: 2 | J54: 10 | K54: =RANK(K49,$B49:$L49) -> 7
A55: R2 | B55: =RANK(B50,$B50:$L50) -> 7 | C55: 9 | D55: 4 | E55: 1 | F55: 8 | G55: 6 | H55: 5 | I55: 10 | J55: 2 | K55: =RANK(K50,$B50:$L50) -> 3
A56: R3 | B56: =RANK(B51,$B51:$L51) -> 7 | C56: 5 | D56: 10 | E56: 9 | F56: 3 | G56: 6 | H56: 8 | I56: 2 | J56: 4 | K56: =RANK(K51,$B51:$L51) -> 1
A57: R4 | B57: =RANK(B52,$B52:$L52) -> 2 | C57: 7 | D57: 3 | E57: 1 | F57: 9 | G57: 8 | H57: 5 | I57: 6 | J57: 10 | K57: =RANK(K52,$B52:$L52) -> 4
A58: R5 | B58: =RANK(B53,$B53:$L53) -> 6 | C58: 10 | D58: 7 | E58: 3 | F58: 2 | G58: 9 | H58: 1 | I58: 5 | J58: 4 | K58: =RANK(K53,$B53:$L53) -> 8
B59: =B2 -> BYRON | C59: JOHN C | D59: MIKE H | E59: STEVER | F59: ROB W | G59: CRAIG T | H59: ANDY W | I59: STU D | J59: 0 | K59: =K2 -> 0 | L59: 0
A60: R1 | B60: =RAND() -> 0.02842105292 | C60: 0.06233272292 | D60: 0.7140761352 | E60: 0.5899655758 | F60: 0.946258713 | G60: 0.3096380982 | H60: 0.5506335519 | I60: 0.7517324269 | J60: 0.235481841 | K60: 0.8134575587 | L60: 0.579565989
A61: R2 | B61: 0.8450538053 | C61: 0.6089240733 | D61: 0.2142458046 | E61: 0.330234735 | F61: 0.2348924034 | G61: 0.6132055103 | H61: 0.07231641189 | I61: 0.479121006 | J61: 0.7200539571 | K61: 0.7025036192 | L61: 0.1645115493
A62: R3 | B62: 0.7958394143 | C62: 0.2092333737 | D62: 0.6790779292 | E62: 0.9754164634 | F62: 0.7202049774 | G62: 0.7002310692 | H62: 0.3924193468 | I62: 0.1525707738 | J62: 0.04868217172 | K62: 0.3689549212 | L62: 0.9559721222
A63: R4 | B63: 0.8391690877 | C63: 0.7423498762 | D63: 0.5879325007 | E63: 0.1262379881 | F63: 0.449991893 | G63: 0.6963969347 | H63: 0.882895707 | I63: 0.1088349199 | J63: 0.5475062632 | K63: 0.419877463 | L63: 0.2594221956
A64: R5 | B64: 0.1623204547 | C64: 0.7495220806 | D64: 0.3859354438 | E64: 0.4049696543 | F64: 0.9331153811 | G64: 0.6670470897 | H64: 0.6010032785 | I64: 0.2237641854 | J64: 0.6650861455 | K64: 0.6977613871 | L64: 0.8053164081
A65: R1 | B65: =RANK(B60,$B60:$L60) -> 11 | C65: 10 | D65: 4 | E65: 5 | F65: 1 | G65: 8 | H65: 7 | I65: 3 | J65: 9 | K65: =RANK(K60,$B60:$L60) -> 2 | L65: 6
A66: R2 | B66: =RANK(B61,$B61:$L61) -> 1 | C66: 5 | D66: 9 | E66: 7 | F66: 8 | G66: 4 | H66: 11 | I66: 6 | J66: 2 | K66: =RANK(K61,$B61:$L61) -> 3 | L66: 10
A67: R3 | B67: =RANK(B62,$B62:$L62) -> 3 | C67: 9 | D67: 6 | E67: 1 | F67: 4 | G67: 5 | H67: 7 | I67: 10 | J67: 11 | K67: =RANK(K62,$B62:$L62) -> 8 | L67: 2
A68: R4 | B68: =RANK(B63,$B63:$L63) -> 2 | C68: 3 | D68: 5 | E68: 10 | F68: 7 | G68: 4 | H68: 1 | I68: 11 | J68: 6 | K68: =RANK(K63,$B63:$L63) -> 8 | L68: 9
A69: R5 | B69: =RANK(B64,$B64:$L64) -> 11 | C69: 3 | D69: 9 | E69: 8 | F69: 1 | G69: 5 | H69: 7 | I69: 10 | J69: 6 | K69: =RANK(K64,$B64:$L64) -> 4 | L69: 2
B70: =B2 -> BYRON | C70: JOHN C | D70: MIKE H | E70: STEVER | F70: ROB W | G70: CRAIG T | H70: ANDY W | I70: STU D | J70: 0 | K70: =K2 -> 0 | L70: 0 | M70: 0
A71: R1 | B71: 0.1174043273 | C71: 0.6173843788 | D71: 0.8774422102 | E71: 0.5993905626 | F71: 0.2064985336 | G71: 0.1910766991 | H71: 0.2591780622 | I71: 0.5423115615 | J71: 0.4129409344 | K71: 0.278515129 | L71: 0.9404610516 | M71: 0.1001476777
A72: R2 | B72: 0.6276243177 | C72: 0.7794764413 | D72: 0.8866279225 | E72: 0.4969464864 | F72: 0.7809514757 | G72: 0.7120464911 | H72: 0.2988570029 | I72: 0.1343474908 | J72: 0.262455567 | K72: 0.8301011283 | L72: 0.3758918567 | M72: 0.4223359896
A73: R3 | B73: 0.5085533647 | C73: 0.1194818996 | D73: 0.3398902548 | E73: 0.83346372 | F73: 0.7474262781 | G73: 0.5552345532 | H73: 0.7240086671 | I73: 0.470398262 | J73: 0.9582804942 | K73: 0.6609004419 | L73: 0.8774188448 | M73: 0.2832093408
A74: R4 | B74: 0.3544458448 | C74: 0.4146199683 | D74: 0.1730614787 | E74: 0.9884237919 | F74: 0.643824772 | G74: 0.1480835444 | H74: 0.2157826169 | I74: 0.1382196833 | J74: 0.2907707923 | K74: 0.4993077531 | L74: 0.1631117984 | M74: 0.05169005966
A75: R5 | B75: 0.6020822247 | C75: 0.5876393444 | D75: 0.1948072748 | E75: 0.03982397536 | F75: 0.5085689935 | G75: 0.9481943482 | H75: 0.2733382322 | I75: 0.5903455311 | J75: 0.1609271093 | K75: 0.9534756394 | L75: 0.2794863127 | M75: 0.03301021462
A76: R1 | B76: =RANK(B71,$B71:$M71) -> 11 | C76: 3 | D76: 2 | E76: 4 | F76: 9 | G76: 10 | H76: 8 | I76: 5 | J76: 6 | K76: =RANK(K71,$B71:$M71) -> 7 | L76: 1 | M76: 12
A77: R2 | B77: =RANK(B72,$B72:$M72) -> 6 | C77: 4 | D77: 1 | E77: 7 | F77: 3 | G77: 5 | H77: 10 | I77: 12 | J77: 11 | K77: =RANK(K72,$B72:$M72) -> 2 | L77: 9 | M77: 8
A78: R3 | B78: =RANK(B73,$B73:$M73) -> 8 | C78: 12 | D78: 10 | E78: 3 | F78: 4 | G78: 7 | H78: 5 | I78: 9 | J78: 1 | K78: =RANK(K73,$B73:$M73) -> 6 | L78: 2 | M78: 11
A79: R4 | B79: =RANK(B74,$B74:$M74) -> 5 | C79: 4 | D79: 8 | E79: 1 | F79: 2 | G79: 10 | H79: 7 | I79: 11 | J79: 6 | K79: =RANK(K74,$B74:$M74) -> 3 | L79: 9 | M79: 12
A80: R5 | B80: =RANK(B75,$B75:$M75) -> 3 | C80: 5 | D80: 9 | E80: 11 | F80: 6 | G80: 2 | H80: 8 | I80: 4 | J80: 10 | K80: =RANK(K75,$B75:$M75) -> 1 | L80: 7 | M80: 12
B82: =B2 -> BYRON | C82: JOHN C | D82: MIKE H | E82: STEVER | F82: ROB W | G82: CRAIG T | H82: ANDY W | I82: STU D | J82: 0 | K82: =K2 -> 0 | L82: 0 | M82: 0 | N82: 0
A83: R1 | B83: =RAND() -> 0.5970549387 | C83: 0.8351359623 | D83: 0.6567066361 | E83: 0.8243538701 | F83: 0.3560403931 | G83: 0.5677005452 | H83: 0.3467636633 | I83: 0.3513545312 | J83: 0.4594306065 | K83: 0.4444660197 | L83: 0.6483547791 | M83: 0.09667296633 | N83: 0.3435083021
A84: R2 | B84: 0.3054359461 | C84: 0.880531098 | D84: 0.8395864636 | E84: 0.357734528 | F84: 0.7038668683 | G84: 0.3233560703 | H84: 0.9861131358 | I84: 0.1429585008 | J84: 0.8352778373 | K84: 0.1096275775 | L84: 0.6448002224 | M84: 0.1527175548 | N84: 0.1466723664
A85: R3 | B85: 0.2752849662 | C85: 0.7004843068 | D85: 0.6473684655 | E85: 0.4062118798 | F85: 0.2270519428 | G85: 0.8515782254 | H85: 0.8058544328 | I85: 0.2567848865 | J85: 0.6786865197 | K85: 0.5058764235 | L85: 0.04214256053 | M85: 0.8097662617 | N85: 0.3547564042
A86: R4 | B86: 0.4894468721 | C86: 0.6145257642 | D86: 0.50802411 | E86: 0.321032979 | F86: 0.9218827485 | G86: 0.9773069485 | H86: 0.03634460958 | I86: 0.1433622203 | J86: 0.1233780315 | K86: 0.6344541428 | L86: 0.7295732176 | M86: 0.6674999551 | N86: 0.8067277822
A87: R5 | B87: 0.6422528796 | C87: 0.01278735344 | D87: 0.835649313 | E87: 0.5718106676 | F87: 0.5359676389 | G87: 0.8886530934 | H87: 0.3805130986 | I87: 0.4388657311 | J87: 0.43926029 | K87: 0.8687315466 | L87: 0.5504806296 | M87: 0.2632505948 | N87: 0.5379512314
A88: R1 | B88: =RANK(B83,$B83:$N83) -> 5 | C88: 1 | D88: 3 | E88: 2 | F88: 9 | G88: 6 | H88: 11 | I88: 10 | J88: 7 | K88: =RANK(K83,$B83:$N83) -> 8 | L88: 4 | M88: 13 | N88: 12
A89: R2 | B89: =RANK(B84,$B84:$N84) -> 9 | C89: 2 | D89: 3 | E89: 7 | F89: 5 | G89: 8 | H89: 1 | I89: 12 | J89: 4 | K89: =RANK(K84,$B84:$N84) -> 13 | L89: 6 | M89: 10 | N89: 11
A90: R3 | B90: =RANK(B85,$B85:$N85) -> 10 | C90: 4 | D90: 6 | E90: 8 | F90: 12 | G90: 1 | H90: 3 | I90: 11 | J90: 5 | K90: =RANK(K85,$B85:$N85) -> 7 | L90: 13 | M90: 2 | N90: 9
A91: R4 | B91: =RANK(B86,$B86:$N86) -> 9 | C91: 7 | D91: 8 | E91: 10 | F91: 2 | G91: 1 | H91: 13 | I91: 11 | J91: 12 | K91: =RANK(K86,$B86:$N86) -> 6 | L91: 4 | M91: 5 | N91: 3
A92: R5 | B92: =RANK(B87,$B87:$N87) -> 4 | C92: 13 | D92: 3 | E92: 5 | F92: 8 | G92: 1 | H92: 11 | I92: 10 | J92: 9 | K92: =RANK(K87,$B87:$N87) -> 2 | L92: 6 | M92: 12 | N92: 7
B93: =B2 -> BYRON | C93: JOHN C | D93: MIKE H | E93: STEVER | F93: ROB W | G93: CRAIG T | H93: ANDY W | I93: STU D | J93: 0 | K93: =K2 -> 0 | L93: 0 | M93: 0 | N93: 0 | O93: 0
A94: R1 | B94: 0.07391141035 | C94: 0.6421642325 | D94: 0.3992038688 | E94: 0.1960817046 | F94: 0.5437249303 | G94: 0.4237305449 | H94: 0.04171783142 | I94: 0.6961071529 | J94: 0.4858263851 | K94: 0.8577165795 | L94: 0.226704851 | M94: 0.6840169866 | N94: 0.3625553819 | O94: 0.8439634115
A95: R2 | B95: 0.09333180834 | C95: 0.5520035325 | D95: 0.1383125433 | E95: 0.8288640001 | F95: 0.4727534918 | G95: 0.7902199878 | H95: 0.1998464411 | I95: 0.09297508755 | J95: 0.9502716752 | K95: 0.5522964893 | L95: 0.6692596201 | M95: 0.7996561313 | N95: 0.1495127284 | O95: 0.507815211
A96: R3 | B96: 0.5320108285 | C96: 0.7128791151 | D96: 0.5759168603 | E96: 0.199248592 | F96: 0.1468345169 | G96: 0.2457092066 | H96: 0.717510726 | I96: 0.8597189406 | J96: 0.3051236522 | K96: 0.5029040795 | L96: 0.8969533333 | M96: 0.3737454969 | N96: 0.4496247106 | O96: 0.5085518627
A97: R4 | B97: 0.6308622589 | C97: 0.3455604827 | D97: 0.5669378298 | E97: 0.9456635354 | F97: 0.7042891237 | G97: 0.7419698023 | H97: 0.611759793 | I97: 0.99576481 | J97: 0.6187300912 | K97: 0.3136399624 | L97: 0.7905724281 | M97: 0.7529866235 | N97: 0.7600680876 | O97: 0.306908005
A98: R5 | B98: 0.5325756255 | C98: 0.7801390939 | D98: 0.708196473 | E98: 0.01768530672 | F98: 0.3710712457 | G98: 0.3965916371 | H98: 0.1079880955 | I98: 0.3412591955 | J98: 0.08253963031 | K98: 0.9879187978 | L98: 0.8459018874 | M98: 0.6197717369 | N98: 0.708451315 | O98: 0.307829729
A99: R1 | B99: =RANK(B94,$B94:$O94) -> 13 | C99: 5 | D99: 9 | E99: 12 | F99: 6 | G99: 8 | H99: 14 | I99: 3 | J99: 7 | K99: =RANK(K94,$B94:$O94) -> 1 | L99: 11 | M99: 4 | N99: 10 | O99: 2
A100: R2 | B100: =RANK(B95,$B95:$O95) -> 13 | C100: 7 | D100: 12 | E100: 2 | F100: 9 | G100: 4 | H100: 10 | I100: 14 | J100: 1 | K100: =RANK(K95,$B95:$O95) -> 6 | L100: 5 | M100: 3 | N100: 11 | O100: 8
A101: R3 | B101: =RANK(B96,$B96:$O96) -> 6 | C101: 4 | D101: 5 | E101: 13 | F101: 14 | G101: 12 | H101: 3 | I101: 2 | J101: 11 | K101: =RANK(K96,$B96:$O96) -> 8 | L101: 1 | M101: 10 | N101: 9 | O101: 7
A102: R4 | B102: =RANK(B97,$B97:$O97) -> 8 | C102: 12 | D102: 11 | E102: 2 | F102: 7 | G102: 6 | H102: 10 | I102: 1 | J102: 9 | K102: =RANK(K97,$B97:$O97) -> 13 | L102: 3 | M102: 5 | N102: 4 | O102: 14
A103: R5 | B103: =RANK(B98,$B98:$O98) -> 7 | C103: 3 | D103: 5 | E103: 14 | F103: 9 | G103: 8 | H103: 12 | I103: 10 | J103: 13 | K103: =RANK(K98,$B98:$O98) -> 1 | L103: 2 | M103: 6 | N103: 4 | O103: 11
B104: =B2 -> BYRON | C104: JOHN C | D104: MIKE H | E104: STEVER | F104: ROB W | G104: CRAIG T | H104: ANDY W | I104: STU D | J104: 0 | K104: =K2 -> 0 | L104: 0 | M104: 0 | N104: 0 | O104: 0 | P104: 0
A105: R1 | B105: =RAND() -> 0.06000034249 | C105: 0.3956847961 | D105: 0.7166902592 | E105: 0.2519145617 | F105: 0.420944642 | G105: 0.6463950317 | H105: 0.7029202208 | I105: 0.3001080517 | J105: 0.6089635568 | K105: 0.2843607277 | L105: 0.6941509601 | M105: 0.6016919132 | N105: 0.222834321 | O105: 0.5033644126 | P105: 0.08804203879
A106: R2 | B106: 0.5335648779 | C106: 0.1980627395 | D106: 0.03450751487 | E106: 0.9369868507 | F106: 0.6157085015 | G106: 0.5635056655 | H106: 0.9123201218 | I106: 0.6554270808 | J106: 0.02729651575 | K106: 0.7513530247 | L106: 0.726172026 | M106: 0.9892108922 | N106: 0.6026192632 | O106: 0.462123973 | P106: 0.1465868568
A107: R3 | B107: 0.5156755505 | C107: 0.2939192496 | D107: 0.1985850827 | E107: 0.5555476134 | F107: 0.8822004715 | G107: 0.510165821 | H107: 0.6945765766 | I107: 0.06621119533 | J107: 0.8171850797 | K107: 0.889069566 | L107: 0.469634479 | M107: 0.564674817 | N107: 0.9042817853 | O107: 0.5968671996 | P107: 0.3310369194
A108: R4 | B108: 0.4312696452 | C108: 0.4818930335 | D108: 0.507123766 | E108: 0.1119334076 | F108: 0.7555332312 | G108: 0.9848782502 | H108: 0.3427532014 | I108: 0.816792809 | J108: 0.3693296882 | K108: 0.5018289568 | L108: 0.1131165248 | M108: 0.4522024173 | N108: 0.06645870784 | O108: 0.3690633101 | P108: 0.06544787361
A109: R5 | B109: 0.4906768164 | C109: 0.1331647261 | D109: 0.6530758476 | E109: 0.3003367254 | F109: 0.9509405015 | G109: 0.7976680565 | H109: 0.4745871733 | I109: 0.1200837111 | J109: 0.5748159242 | K109: 0.1633281862 | L109: 0.348080873 | M109: 0.1807056149 | N109: 0.9636934641 | O109: 0.4896501262 | P109: 0.2372773161
A110: R1 | B110: =RANK(B105,$B105:$P105) -> 15 | C110: 9 | D110: 1 | E110: 12 | F110: 8 | G110: 4 | H110: 2 | I110: 10 | J110: 5 | K110: =RANK(K105,$B105:$P105) -> 11 | L110: 3 | M110: 6 | N110: 13 | O110: 7 | P110: 14
A111: R2 | B111: =RANK(B106,$B106:$P106) -> 10 | C111: 12 | D111: 14 | E111: 2 | F111: 7 | G111: 9 | H111: 3 | I111: 6 | J111: 15 | K111: =RANK(K106,$B106:$P106) -> 4 | L111: 5 | M111: 1 | N111: 8 | O111: 11 | P111: 13
A112: R3 | B112: =RANK(B107,$B107:$P107) -> 9 | C112: 13 | D112: 14 | E112: 8 | F112: 3 | G112: 10 | H112: 5 | I112: 15 | J112: 4 | K112: =RANK(K107,$B107:$P107) -> 2 | L112: 11 | M112: 7 | N112: 1 | O112: 6 | P112: 12
A113: R4 | B113: =RANK(B108,$B108:$P108) -> 8 | C113: 6 | D113: 4 | E113: 13 | F113: 3 | G113: 1 | H113: 11 | I113: 2 | J113: 9 | K113: =RANK(K108,$B108:$P108) -> 5 | L113: 12 | M113: 7 | N113: 14 | O113: 10 | P113: 15
A114: R5 | B114: =RANK(B109,$B109:$P109) -> 6 | C114: 14 | D114: 4 | E114: 10 | F114: 2 | G114: 3 | H114: 8 | I114: 15 | J114: 5 | K114: =RANK(K109,$B109:$P109) -> 13 | L114: 9 | M114: 12 | N114: 1 | O114: 7 | P114: 11
A116: HERE-> | B116: 3 | C116: 5 | D116: 4 | E116: 8 | F116: 7 | G116: 1 | H116: 2 | I116: 6
B117: 3 | C117: 6 | D117: 4 | E117: 1 | F117: 2 | G117: 8 | H117: 7 | I117: 5
B118: 6 | C118: 4 | D118: 5 | E118: 7 | F118: 8 | G118: 3 | H118: 2 | I118: 1
B119: 2 | C119: 3 | D119: 5 | E119: 7 | F119: 6 | G119: 1 | H119: 8 | I119: 4
B120: 2 | C120: 4 | D120: 5 | E120: 6 | F120: 7 | G120: 8 | H120: 1 | I120: 3
B122: CUT RANDOM NUMBERS & PASTE VALUES HERE TO BE PICKED UP BY OTHER SHEETS
C123: DESIGNED FOR EIGHT PLAYERS - CAN BE EXPANDED

Sheet Round order
B1: 1 | C1: 2 | D1: 3 | E1: 4 | F1: 5 | G1: 6 | H1: 7 | I1: 8
A2: R1 | B2: =IF('random picks'!$B116=1,'random picks'!$B$2,IF('random picks'!$C116=1,'random picks'!$C$2,IF('random picks'!$D116=1,'random picks'!$D$2,IF('random picks'!$E116=1,'random picks'!$E$2,IF('random picks'!$F116=1,'random picks'!$F$2,IF('random picks'!$G116=1,'random picks'!$G$2,IF('random picks'!$H116=1,'random picks'!$H$2,IF('random picks'!$I116=1,'random picks'!$I$2)))))))) -> CRAIG T | C2: =IF('random picks'!$B116=2,'random picks'!$B$2,IF('random picks'!$C116=2,'random picks'!$C$2,IF('random picks'!$D116=2,'random picks'!$D$2,IF('random picks'!$E116=2,'random picks'!$E$2,IF('random picks'!$F116=2,'random picks'!$F$2,IF('random picks'!$G116=2,'random picks'!$G$2,IF('random picks'!$H116=2,'random picks'!$H$2,IF('random picks'!$I116=2,'random picks'!$I$2)))))))) -> ANDY W | D2: =IF('random picks'!$B116=3,'random picks'!$B$2,IF('random picks'!$C116=3,'random picks'!$C$2,IF('random picks'!$D116=3,'random picks'!$D$2,IF('random picks'!$E116=3,'random picks'!$E$2,IF('random picks'!$F116=3,'random picks'!$F$2,IF('random picks'!$G116=3,'random picks'!$G$2,IF('random picks'!$H116=3,'random picks'!$H$2,IF('random picks'!$I116=3,'random picks'!$I$2)))))))) -> BYRON | E2: =IF('random picks'!$B116=4,'random picks'!$B$2,IF('random picks'!$C116=4,'random picks'!$C$2,IF('random picks'!$D116=4,'random picks'!$D$2,IF('random picks'!$E116=4,'random picks'!$E$2,IF('random picks'!$F116=4,'random picks'!$F$2,IF('random picks'!$G116=4,'random picks'!$G$2,IF('random picks'!$H116=4,'random picks'!$H$2,IF('random picks'!$I116=4,'random picks'!$I$2)))))))) -> MIKE H | F2: =IF('random picks'!$B116=5,'random picks'!$B$2,IF('random picks'!$C116=5,'random picks'!$C$2,IF('random picks'!$D116=5,'random picks'!$D$2,IF('random picks'!$E116=5,'random picks'!$E$2,IF('random picks'!$F116=5,'random picks'!$F$2,IF('random picks'!$G116=5,'random picks'!$G$2,IF('random picks'!$H116=5,'random picks'!$H$2,IF('random picks'!$I116=5,'random picks'!$I$2)))))))) -> JOHN C | G2: =IF('random picks'!$B116=6,'random picks'!$B$2,IF('random picks'!$C116=6,'random picks'!$C$2,IF('random picks'!$D116=6,'random picks'!$D$2,IF('random picks'!$E116=6,'random picks'!$E$2,IF('random picks'!$F116=6,'random picks'!$F$2,IF('random picks'!$G116=6,'random picks'!$G$2,IF('random picks'!$H116=6,'random picks'!$H$2,IF('random picks'!$I116=6,'random picks'!$I$2)))))))) -> STU D | H2: =IF('random picks'!$B116=7,'random picks'!$B$2,IF('random picks'!$C116=7,'random picks'!$C$2,IF('random picks'!$D116=7,'random picks'!$D$2,IF('random picks'!$E116=7,'random picks'!$E$2,IF('random picks'!$F116=7,'random picks'!$F$2,IF('random picks'!$G116=7,'random picks'!$G$2,IF('random picks'!$H116=7,'random picks'!$H$2,IF('random picks'!$I116=7,'random picks'!$I$2)))))))) -> ROB W | I2: =IF('random picks'!$B116=8,'random picks'!$B$2,IF('random picks'!$C116=8,'random picks'!$C$2,IF('random picks'!$D116=8,'random picks'!$D$2,IF('random picks'!$E116=8,'random picks'!$E$2,IF('random picks'!$F116=8,'random picks'!$F$2,IF('random picks'!$G116=8,'random picks'!$G$2,IF('random picks'!$H116=8,'random picks'!$H$2,IF('random picks'!$I116=8,'random picks'!$I$2)))))))) -> STEVER
A3: R2 | B3: =IF('random picks'!$B117=1,'random picks'!$B$2,IF('random picks'!$C117=1,'random picks'!$C$2,IF('random picks'!$D117=1,'random picks'!$D$2,IF('random picks'!$E117=1,'random picks'!$E$2,IF('random picks'!$F117=1,'random picks'!$F$2,IF('random picks'!$G117=1,'random picks'!$G$2,IF('random picks'!$H117=1,'random picks'!$H$2,IF('random picks'!$I117=1,'random picks'!$I$2)))))))) -> STEVER | C3: =IF('random picks'!$B117=2,'random picks'!$B$2,IF('random picks'!$C117=2,'random picks'!$C$2,IF('random picks'!$D117=2,'random picks'!$D$2,IF('random picks'!$E117=2,'random picks'!$E$2,IF('random picks'!$F117=2,'random picks'!$F$2,IF('random picks'!$G117=2,'random picks'!$G$2,IF('random picks'!$H117=2,'random picks'!$H$2,IF('random picks'!$I117=2,'random picks'!$I$2)))))))) -> ROB W | D3: =IF('random picks'!$B117=3,'random picks'!$B$2,IF('random picks'!$C117=3,'random picks'!$C$2,IF('random picks'!$D117=3,'random picks'!$D$2,IF('random picks'!$E117=3,'random picks'!$E$2,IF('random picks'!$F117=3,'random picks'!$F$2,IF('random picks'!$G117=3,'random picks'!$G$2,IF('random picks'!$H117=3,'random picks'!$H$2,IF('random picks'!$I117=3,'random picks'!$I$2)))))))) -> BYRON | E3: =IF('random picks'!$B117=4,'random picks'!$B$2,IF('random picks'!$C117=4,'random picks'!$C$2,IF('random picks'!$D117=4,'random picks'!$D$2,IF('random picks'!$E117=4,'random picks'!$E$2,IF('random picks'!$F117=4,'random picks'!$F$2,IF('random picks'!$G117=4,'random picks'!$G$2,IF('random picks'!$H117=4,'random picks'!$H$2,IF('random picks'!$I117=4,'random picks'!$I$2)))))))) -> MIKE H | F3: =IF('random picks'!$B117=5,'random picks'!$B$2,IF('random picks'!$C117=5,'random picks'!$C$2,IF('random picks'!$D117=5,'random picks'!$D$2,IF('random picks'!$E117=5,'random picks'!$E$2,IF('random picks'!$F117=5,'random picks'!$F$2,IF('random picks'!$G117=5,'random picks'!$G$2,IF('random picks'!$H117=5,'random picks'!$H$2,IF('random picks'!$I117=5,'random picks'!$I$2)))))))) -> STU D | G3: =IF('random picks'!$B117=6,'random picks'!$B$2,IF('random picks'!$C117=6,'random picks'!$C$2,IF('random picks'!$D117=6,'random picks'!$D$2,IF('random picks'!$E117=6,'random picks'!$E$2,IF('random picks'!$F117=6,'random picks'!$F$2,IF('random picks'!$G117=6,'random picks'!$G$2,IF('random picks'!$H117=6,'random picks'!$H$2,IF('random picks'!$I117=6,'random picks'!$I$2)))))))) -> JOHN C | H3: =IF('random picks'!$B117=7,'random picks'!$B$2,IF('random picks'!$C117=7,'random picks'!$C$2,IF('random picks'!$D117=7,'random picks'!$D$2,IF('random picks'!$E117=7,'random picks'!$E$2,IF('random picks'!$F117=7,'random picks'!$F$2,IF('random picks'!$G117=7,'random picks'!$G$2,IF('random picks'!$H117=7,'random picks'!$H$2,IF('random picks'!$I117=7,'random picks'!$I$2)))))))) -> ANDY W | I3: =IF('random picks'!$B117=8,'random picks'!$B$2,IF('random picks'!$C117=8,'random picks'!$C$2,IF('random picks'!$D117=8,'random picks'!$D$2,IF('random picks'!$E117=8,'random picks'!$E$2,IF('random picks'!$F117=8,'random picks'!$F$2,IF('random picks'!$G117=8,'random picks'!$G$2,IF('random picks'!$H117=8,'random picks'!$H$2,IF('random picks'!$I117=8,'random picks'!$I$2)))))))) -> CRAIG T
A4: R3 | B4: =IF('random picks'!$B118=1,'random picks'!$B$2,IF('random picks'!$C118=1,'random picks'!$C$2,IF('random picks'!$D118=1,'random picks'!$D$2,IF('random picks'!$E118=1,'random picks'!$E$2,IF('random picks'!$F118=1,'random picks'!$F$2,IF('random picks'!$G118=1,'random picks'!$G$2,IF('random picks'!$H118=1,'random picks'!$H$2,IF('random picks'!$I118=1,'random picks'!$I$2)))))))) -> STU D | C4: =IF('random picks'!$B118=2,'random picks'!$B$2,IF('random picks'!$C118=2,'random picks'!$C$2,IF('random picks'!$D118=2,'random picks'!$D$2,IF('random picks'!$E118=2,'random picks'!$E$2,IF('random picks'!$F118=2,'random picks'!$F$2,IF('random picks'!$G118=2,'random picks'!$G$2,IF('random picks'!$H118=2,'random picks'!$H$2,IF('random picks'!$I118=2,'random picks'!$I$2)))))))) -> ANDY W | D4: =IF('random picks'!$B118=3,'random picks'!$B$2,IF('random picks'!$C118=3,'random picks'!$C$2,IF('random picks'!$D118=3,'random picks'!$D$2,IF('random picks'!$E118=3,'random picks'!$E$2,IF('random picks'!$F118=3,'random picks'!$F$2,IF('random picks'!$G118=3,'random picks'!$G$2,IF('random picks'!$H118=3,'random picks'!$H$2,IF('random picks'!$I118=3,'random picks'!$I$2)))))))) -> CRAIG T | E4: =IF('random picks'!$B118=4,'random picks'!$B$2,IF('random picks'!$C118=4,'random picks'!$C$2,IF('random picks'!$D118=4,'random picks'!$D$2,IF('random picks'!$E118=4,'random picks'!$E$2,IF('random picks'!$F118=4,'random picks'!$F$2,IF('random picks'!$G118=4,'random picks'!$G$2,IF('random picks'!$H118=4,'random picks'!$H$2,IF('random picks'!$I118=4,'random picks'!$I$2)))))))) -> JOHN C | F4: =IF('random picks'!$B118=5,'random picks'!$B$2,IF('random picks'!$C118=5,'random picks'!$C$2,IF('random picks'!$D118=5,'random picks'!$D$2,IF('random picks'!$E118=5,'random picks'!$E$2,IF('random picks'!$F118=5,'random picks'!$F$2,IF('random picks'!$G118=5,'random picks'!$G$2,IF('random picks'!$H118=5,'random picks'!$H$2,IF('random picks'!$I118=5,'random picks'!$I$2)))))))) -> MIKE H | G4: =IF('random picks'!$B118=6,'random picks'!$B$2,IF('random picks'!$C118=6,'random picks'!$C$2,IF('random picks'!$D118=6,'random picks'!$D$2,IF('random picks'!$E118=6,'random picks'!$E$2,IF('random picks'!$F118=6,'random picks'!$F$2,IF('random picks'!$G118=6,'random picks'!$G$2,IF('random picks'!$H118=6,'random picks'!$H$2,IF('random picks'!$I118=6,'random picks'!$I$2)))))))) -> BYRON | H4: =IF('random picks'!$B118=7,'random picks'!$B$2,IF('random picks'!$C118=7,'random picks'!$C$2,IF('random picks'!$D118=7,'random picks'!$D$2,IF('random picks'!$E118=7,'random picks'!$E$2,IF('random picks'!$F118=7,'random picks'!$F$2,IF('random picks'!$G118=7,'random picks'!$G$2,IF('random picks'!$H118=7,'random picks'!$H$2,IF('random picks'!$I118=7,'random picks'!$I$2)))))))) -> STEVER | I4: =IF('random picks'!$B118=8,'random picks'!$B$2,IF('random picks'!$C118=8,'random picks'!$C$2,IF('random picks'!$D118=8,'random picks'!$D$2,IF('random picks'!$E118=8,'random picks'!$E$2,IF('random picks'!$F118=8,'random picks'!$F$2,IF('random picks'!$G118=8,'random picks'!$G$2,IF('random picks'!$H118=8,'random picks'!$H$2,IF('random picks'!$I118=8,'random picks'!$I$2)))))))) -> ROB W
A5: R4 | B5: =IF('random picks'!$B119=1,'random picks'!$B$2,IF('random picks'!$C119=1,'random picks'!$C$2,IF('random picks'!$D119=1,'random picks'!$D$2,IF('random picks'!$E119=1,'random picks'!$E$2,IF('random picks'!$F119=1,'random picks'!$F$2,IF('random picks'!$G119=1,'random picks'!$G$2,IF('random picks'!$H119=1,'random picks'!$H$2,IF('random picks'!$I119=1,'random picks'!$I$2)))))))) -> CRAIG T | C5: =IF('random picks'!$B119=2,'random picks'!$B$2,IF('random picks'!$C119=2,'random picks'!$C$2,IF('random picks'!$D119=2,'random picks'!$D$2,IF('random picks'!$E119=2,'random picks'!$E$2,IF('random picks'!$F119=2,'random picks'!$F$2,IF('random picks'!$G119=2,'random picks'!$G$2,IF('random picks'!$H119=2,'random picks'!$H$2,IF('random picks'!$I119=2,'random picks'!$I$2)))))))) -> BYRON | D5: =IF('random picks'!$B119=3,'random picks'!$B$2,IF('random picks'!$C119=3,'random picks'!$C$2,IF('random picks'!$D119=3,'random picks'!$D$2,IF('random picks'!$E119=3,'random picks'!$E$2,IF('random picks'!$F119=3,'random picks'!$F$2,IF('random picks'!$G119=3,'random picks'!$G$2,IF('random picks'!$H119=3,'random picks'!$H$2,IF('random picks'!$I119=3,'random picks'!$I$2)))))))) -> JOHN C | E5: =IF('random picks'!$B119=4,'random picks'!$B$2,IF('random picks'!$C119=4,'random picks'!$C$2,IF('random picks'!$D119=4,'random picks'!$D$2,IF('random picks'!$E119=4,'random picks'!$E$2,IF('random picks'!$F119=4,'random picks'!$F$2,IF('random picks'!$G119=4,'random picks'!$G$2,IF('random picks'!$H119=4,'random picks'!$H$2,IF('random picks'!$I119=4,'random picks'!$I$2)))))))) -> STU D | F5: =IF('random picks'!$B119=5,'random picks'!$B$2,IF('random picks'!$C119=5,'random picks'!$C$2,IF('random picks'!$D119=5,'random picks'!$D$2,IF('random picks'!$E119=5,'random picks'!$E$2,IF('random picks'!$F119=5,'random picks'!$F$2,IF('random picks'!$G119=5,'random picks'!$G$2,IF('random picks'!$H119=5,'random picks'!$H$2,IF('random picks'!$I119=5,'random picks'!$I$2)))))))) -> MIKE H | G5: =IF('random picks'!$B119=6,'random picks'!$B$2,IF('random picks'!$C119=6,'random picks'!$C$2,IF('random picks'!$D119=6,'random picks'!$D$2,IF('random picks'!$E119=6,'random picks'!$E$2,IF('random picks'!$F119=6,'random picks'!$F$2,IF('random picks'!$G119=6,'random picks'!$G$2,IF('random picks'!$H119=6,'random picks'!$H$2,IF('random picks'!$I119=6,'random picks'!$I$2)))))))) -> ROB W | H5: =IF('random picks'!$B119=7,'random picks'!$B$2,IF('random picks'!$C119=7,'random picks'!$C$2,IF('random picks'!$D119=7,'random picks'!$D$2,IF('random picks'!$E119=7,'random picks'!$E$2,IF('random picks'!$F119=7,'random picks'!$F$2,IF('random picks'!$G119=7,'random picks'!$G$2,IF('random picks'!$H119=7,'random picks'!$H$2,IF('random picks'!$I119=7,'random picks'!$I$2)))))))) -> STEVER | I5: =IF('random picks'!$B119=8,'random picks'!$B$2,IF('random picks'!$C119=8,'random picks'!$C$2,IF('random picks'!$D119=8,'random picks'!$D$2,IF('random picks'!$E119=8,'random picks'!$E$2,IF('random picks'!$F119=8,'random picks'!$F$2,IF('random picks'!$G119=8,'random picks'!$G$2,IF('random picks'!$H119=8,'random picks'!$H$2,IF('random picks'!$I119=8,'random picks'!$I$2)))))))) -> ANDY W
A6: R5 | B6: =IF('random picks'!$B120=1,'random picks'!$B$2,IF('random picks'!$C120=1,'random picks'!$C$2,IF('random picks'!$D120=1,'random picks'!$D$2,IF('random picks'!$E120=1,'random picks'!$E$2,IF('random picks'!$F120=1,'random picks'!$F$2,IF('random picks'!$G120=1,'random picks'!$G$2,IF('random picks'!$H120=1,'random picks'!$H$2,IF('random picks'!$I120=1,'random picks'!$I$2)))))))) -> ANDY W | C6: =IF('random picks'!$B120=2,'random picks'!$B$2,IF('random picks'!$C120=2,'random picks'!$C$2,IF('random picks'!$D120=2,'random picks'!$D$2,IF('random picks'!$E120=2,'random picks'!$E$2,IF('random picks'!$F120=2,'random picks'!$F$2,IF('random picks'!$G120=2,'random picks'!$G$2,IF('random picks'!$H120=2,'random picks'!$H$2,IF('random picks'!$I120=2,'random picks'!$I$2)))))))) -> BYRON | D6: =IF('random picks'!$B120=3,'random picks'!$B$2,IF('random picks'!$C120=3,'random picks'!$C$2,IF('random picks'!$D120=3,'random picks'!$D$2,IF('random picks'!$E120=3,'random picks'!$E$2,IF('random picks'!$F120=3,'random picks'!$F$2,IF('random picks'!$G120=3,'random picks'!$G$2,IF('random picks'!$H120=3,'random picks'!$H$2,IF('random picks'!$I120=3,'random picks'!$I$2)))))))) -> STU D | E6: =IF('random picks'!$B120=4,'random picks'!$B$2,IF('random picks'!$C120=4,'random picks'!$C$2,IF('random picks'!$D120=4,'random picks'!$D$2,IF('random picks'!$E120=4,'random picks'!$E$2,IF('random picks'!$F120=4,'random picks'!$F$2,IF('random picks'!$G120=4,'random picks'!$G$2,IF('random picks'!$H120=4,'random picks'!$H$2,IF('random picks'!$I120=4,'random picks'!$I$2)))))))) -> JOHN C | F6: =IF('random picks'!$B120=5,'random picks'!$B$2,IF('random picks'!$C120=5,'random picks'!$C$2,IF('random picks'!$D120=5,'random picks'!$D$2,IF('random picks'!$E120=5,'random picks'!$E$2,IF('random picks'!$F120=5,'random picks'!$F$2,IF('random picks'!$G120=5,'random picks'!$G$2,IF('random picks'!$H120=5,'random picks'!$H$2,IF('random picks'!$I120=5,'random picks'!$I$2)))))))) -> MIKE H | G6: =IF('random picks'!$B120=6,'random picks'!$B$2,IF('random picks'!$C120=6,'random picks'!$C$2,IF('random picks'!$D120=6,'random picks'!$D$2,IF('random picks'!$E120=6,'random picks'!$E$2,IF('random picks'!$F120=6,'random picks'!$F$2,IF('random picks'!$G120=6,'random picks'!$G$2,IF('random picks'!$H120=6,'random picks'!$H$2,IF('random picks'!$I120=6,'random picks'!$I$2)))))))) -> STEVER | H6: =IF('random picks'!$B120=7,'random picks'!$B$2,IF('random picks'!$C120=7,'random picks'!$C$2,IF('random picks'!$D120=7,'random picks'!$D$2,IF('random picks'!$E120=7,'random picks'!$E$2,IF('random picks'!$F120=7,'random picks'!$F$2,IF('random picks'!$G120=7,'random picks'!$G$2,IF('random picks'!$H120=7,'random picks'!$H$2,IF('random picks'!$I120=7,'random picks'!$I$2)))))))) -> ROB W | I6: =IF('random picks'!$B120=8,'random picks'!$B$2,IF('random picks'!$C120=8,'random picks'!$C$2,IF('random picks'!$D120=8,'random picks'!$D$2,IF('random picks'!$E120=8,'random picks'!$E$2,IF('random picks'!$F120=8,'random picks'!$F$2,IF('random picks'!$G120=8,'random picks'!$G$2,IF('random picks'!$H120=8,'random picks'!$H$2,IF('random picks'!$I120=8,'random picks'!$I$2)))))))) -> CRAIG T

Sheet BLANKS
A1: US MASTERS 2017
A3: Day 0
A5: =results!A7 -> BYRON | B5: Pick | D5: =results!G7 -> ROB W | E5: Pick | G5: =results!M7 -> 0 | H5: Pick
B6: =SUM(B7:B11)/5 -> 3.2 | E6: =SUM(E7:E11)/5 -> 6 | H6: =SUM(H7:H11)/5 -> 0
A7: Rory McIlroy | B7: ='random picks'!B116 -> 3 | D7: Justin Rose | E7: ='random picks'!F116 -> 7 | H7: ='random picks'!J116 -> 0
A8: Henrik Stenson | B8: ='random picks'!B117 -> 3 | D8: Jon Rahm | E8: ='random picks'!F117 -> 2 | H8: ='random picks'!J117 -> 0
A9: Matthew Fitzpatrick | B9: ='random picks'!B118 -> 6 | D9: Marc Leishman | E9: ='random picks'!F118 -> 8 | H9: ='random picks'!J118 -> 0
A10: Adam Hadwin | B10: ='random picks'!B119 -> 2 | D10: Lee Westwood | E10: ='random picks'!F119 -> 6 | H10: ='random picks'!J119 -> 0
A11: Gary Woodland | B11: ='random picks'!B120 -> 2 | D11: Charley Hoffman | E11: ='random picks'!F120 -> 7 | H11: ='random picks'!J120 -> 0
A12: Best 3 | D12: Best 3 | G12: Best 3
A13: Running position | D13: Running position | G13: Running position
A14: =results!A16 -> JOHN C | D14: =results!G16 -> CRAIG T | G14: =results!M16 -> 0
B15: =SUM(B16:B20)/5 -> 4.4 | E15: =SUM(E16:E20)/5 -> 4.2 | H15: =SUM(H16:H20)/5 -> 0
A16: Rickie Fowler | B16: ='random picks'!C116 -> 5 | D16: Dustin Johnson | E16: ='random picks'!G116 -> 1 | H16: ='random picks'!K116 -> 0
A17: Louis Oosthuizen | B17: ='random picks'!C117 -> 6 | D17: Sergio Garcia | E17: ='random picks'!G117 -> 8 | H17: ='random picks'!K117 -> 0
A18: Patrick Reed | B18: ='random picks'!C118 -> 4 | D18: Brooks Koepka | E18: ='random picks'!G118 -> 3 | H18: ='random picks'!K118 -> 0
A19: Jimmy Walker | B19: ='random picks'!C119 -> 3 | D19: Matt Kuchar | E19: ='random picks'!G119 -> 1 | H19: ='random picks'!K119 -> 0
A20: Zach Johnson | B20: ='random picks'!C120 -> 4 | D20: Danny Willett | E20: ='random picks'!G120 -> 8 | H20: ='random picks'!K120 -> 0
A21: Best 3 | D21: Best 3 | G21: Best 3
A22: Running position | D22: Running position | G22: Running position
A23: =results!A25 -> MIKE H | D23: =results!G25 -> ANDY W | G23: =results!M25 -> 0
B24: =SUM(B25:B29)/5 -> 4.6 | E24: =SUM(E25:E29)/5 -> 4 | H24: =SUM(H25:H29)/5 -> 0
A25: Hideki Matsuyama | B25: ='random picks'!D116 -> 4 | D25: Jordan Spieth | E25: ='random picks'!H116 -> 2 | H25: ='random picks'!L116 -> 0
A26: Bubba Watson | B26: ='random picks'!D117 -> 4 | D26: Paul Casey | E26: ='random picks'!H117 -> 7 | H26: ='random picks'!L117 -> 0
A27: Thomas Pieters | B27: ='random picks'!D118 -> 5 | D27: Brandt Snedeker | E27: ='random picks'!H118 -> 2 | H27: ='random picks'!L118 -> 0
A28: Daniel Berger | B28: ='random picks'!D119 -> 5 | D28: J.B. Holmes | E28: ='random picks'!H119 -> 8 | H28: ='random picks'!L119 -> 0
A29: Shane Lowry | B29: ='random picks'!D120 -> 5 | D29: Kevin Kisner | E29: ='random picks'!H120 -> 1 | H29: ='random picks'!L120 -> 0
A30: Best 3 | D30: Best 3 | G30: Best 3
A31: Running position | D31: Running position | G31: Running position
A32: =results!A34 -> STEVER | D32: =results!G34 -> STU D | G32: =results!M34 -> 0
B33: =SUM(B34:B38)/5 -> 5.8 | E33: =SUM(E34:E38)/5 -> 3.8 | H33: =SUM(H34:H38)/5 -> 0
A34: Phil Mickelson | B34: ='random picks'!E116 -> 8 | D34: Jason Day | E34: ='random picks'!I116 -> 6 | H34: ='random picks'!M116 -> 0
A35: Adam Scott | B35: ='random picks'!E117 -> 1 | D35: Justin Thomas | E35: ='random picks'!I117 -> 5 | H35: ='random picks'!M117 -> 0
A36: Charl Schwartzel | B36: ='random picks'!E118 -> 7 | D36: Tyrrell Hatton | E36: ='random picks'!I118 -> 1 | H36: ='random picks'!M118 -> 0
A37: Bill Haas | B37: ='random picks'!E119 -> 7 | D37: Tommy Fleetwood | E37: ='random picks'!I119 -> 4 | H37: ='random picks'!M119 -> 0
A38: Alex Noren | B38: ='random picks'!E120 -> 6 | D38: Soren Kjeldsen | E38: ='random picks'!I120 -> 3 | H38: ='random picks'!M120 -> 0
A39: Best 3 | D39: Best 3
A40: Running position | D40: Running position

Sheet ranks
C1: Positions
A3: row | B3: col | C3: Player | D3: Score | E3: Score adj | F3: Rank | G3: Rank adj
A4: 1 | B4: 1 | C4: =INDEX(results!$A$7:$Q$42,$A4,$B4) -> BYRON | D4: =INDEX(results!$A$7:$Q$42,$A4+6,$B4+2) -> 11 | E4: =INDEX(results!$A$7:$Q$42,$A4+6,$B4+3) -> 10.968 | F4: =IF(ISERROR(RANK(D4,$D$4:$D$14,1)),"",RANK(D4,$D$4:$D$14,1)) -> 7 | G4: =IF(ISERROR(RANK(E4,$E$4:$E$14,1)),"",RANK(E4,$E$4:$E$14,1)) -> 7
A5: =A4+9 -> 10 | B5: 1 | C5: =INDEX(results!$A$7:$Q$42,$A5,$B5) -> JOHN C | D5: =INDEX(results!$A$7:$Q$42,$A5+6,$B5+2) -> 3 | E5: =INDEX(results!$A$7:$Q$42,$A5+6,$B5+3) -> 2.956 | F5: 4 | G5: =IF(ISERROR(RANK(E5,$E$4:$E$14,1)),"",RANK(E5,$E$4:$E$14,1)) -> 4
A6: =A5+9 -> 19 | B6: 1 | C6: =INDEX(results!$A$7:$Q$42,$A6,$B6) -> MIKE H | D6: =INDEX(results!$A$7:$Q$42,$A6+6,$B6+2) -> 4 | E6: =INDEX(results!$A$7:$Q$42,$A6+6,$B6+3) -> 3.954 | F6: 5 | G6: 5
A7: =A6+9 -> 28 | B7: 1 | C7: =INDEX(results!$A$7:$Q$42,$A7,$B7) -> STEVER | D7: =INDEX(results!$A$7:$Q$42,$A7+6,$B7+2) -> 2 | E7: =INDEX(results!$A$7:$Q$42,$A7+6,$B7+3) -> 1.942 | F7: 3 | G7: 3
A8: 1 | B8: =B4+6 -> 7 | C8: =INDEX(results!$A$7:$Q$42,$A8,$B8) -> ROB W | D8: =INDEX(results!$A$7:$Q$42,$A8+6,$B8+2) -> -6 | E8: =INDEX(results!$A$7:$Q$42,$A8+6,$B8+3) -> -6.06 | F8: 1 | G8: 1
A9: =A8+9 -> 10 | B9: 7 | C9: =INDEX(results!$A$7:$Q$42,$A9,$B9) -> CRAIG T | D9: =INDEX(results!$A$7:$Q$42,$A9+6,$B9+2) -> 0 | E9: =INDEX(results!$A$7:$Q$42,$A9+6,$B9+3) -> -0.042 | F9: 2 | G9: 2
A10: =A9+9 -> 19 | B10: 7 | C10: =INDEX(results!$A$7:$Q$42,$A10,$B10) -> ANDY W | D10: =INDEX(results!$A$7:$Q$42,$A10+6,$B10+2) -> 8 | E10: =INDEX(results!$A$7:$Q$42,$A10+6,$B10+3) -> 7.96 | F10: 6 | G10: 6
A11: =A10+9 -> 28 | B11: 7 | C11: =INDEX(results!$A$7:$Q$42,$A11,$B11) -> STU D | D11: =INDEX(results!$A$7:$Q$42,$A11+6,$B11+2) -> 12 | E11: =INDEX(results!$A$7:$Q$42,$A11+6,$B11+3) -> 11.962 | F11: 8 | G11: 8
A12: 1 | B12: 13 | C12: =INDEX(results!$A$7:$Q$42,$A12,$B12) -> 0 | D12: =INDEX(results!$A$7:$Q$42,$A12+6,$B12+2) ->  | E12: =INDEX(results!$A$7:$Q$42,$A12+6,$B12+3) -> 
A13: 10 | B13: 13 | C13: =INDEX(results!$A$7:$Q$42,$A13,$B13) -> 0 | D13: =INDEX(results!$A$7:$Q$42,$A13+6,$B13+2) ->  | E13: =INDEX(results!$A$7:$Q$42,$A13+6,$B13+3) -> 
A14: 19 | B14: =B9+6 -> 13 | C14: =INDEX(results!$A$7:$Q$42,$A14,$B14) -> 0 | D14: =INDEX(results!$A$7:$Q$42,$A14+6,$B14+2) ->  | E14: =INDEX(results!$A$7:$Q$42,$A14+6,$B14+3) -> 
C18: Put sorted scores here for posting to website
B20: 7 | C20: Player | D20: Score | E20: Score adj | F20: Rank | G20: Rank adj
B21: 13 | C21: ROB W | D21: -6 | E21: -6.06 | F21: 1 | G21: 1
B22: 1 | C22: CRAIG T | D22: 0 | E22: -0.042 | F22: 2 | G22: 2
B23: 1 | C23: STEVER | D23: 2 | E23: 1.942 | F23: 3 | G23: 3
B24: 1 | C24: JOHN C | D24: 3 | E24: 2.956 | F24: 4 | G24: 4
B25: 13 | C25: MIKE H | D25: 4 | E25: 3.954 | F25: 5 | G25: 5
B26: 7 | C26: ANDY W | D26: 8 | E26: 7.96 | F26: 6 | G26: 6
B27: 1 | C27: BYRON | D27: 11 | E27: 10.968 | F27: 7 | G27: 7
B28: 7 | C28: STU D | D28: 12 | E28: 11.962 | F28: 8 | G28: 8
B29: 7 | C29: Tim | D29: 24 | E29: 24 | F29: 9 | G29: 9
B30: 13 | C30: Dean
C31: Shem
C38: Average scores of picks | D38: Avg | E38: Rank
C39: Pick 1 | D39: =AVERAGE(results!C8,results!#REF!,results!#REF!,results!#REF!,results!#REF!,results!#REF!,results!#REF!,results!#REF!,results!O8,results!O17,results!O26,results!O35) ->  | E39: =RANK(D39,$D$39:$D$43,1) -> 
C40: Pick 2 | D40: =AVERAGE(results!C9,results!C17,results!C26,results!C35,results!I8,results!I17,results!I26,results!I35,results!O9,results!O18,results!O27,results!O36) ->  | E40: =RANK(D40,$D$39:$D$43,1) -> 
C41: Pick 3 | D41: =AVERAGE(results!C10,results!C19,results!C28,results!C37,results!I10,results!I19,results!I28,results!I37,results!O10,results!O19,results!O28,results!O37) ->  | E41: =RANK(D41,$D$39:$D$43,1) -> 
C42: Pick 4 | D42: =AVERAGE(results!C11,results!C20,results!C29,results!C38,results!I11,results!I20,results!I29,results!I38,results!O11,results!O20,results!O29,results!O38) ->  | E42: =RANK(D42,$D$39:$D$43,1) -> 
C43: Pick 5 | D43: =AVERAGE(results!C12,results!C21,results!C30,results!C39,results!I12,results!I21,results!I30,results!I39,results!O12,results!O21,results!O30,results!O39) ->  | E43: =RANK(D43,$D$39:$D$43,1) -> 
C45: NEEDS UPDATING

Sheet PAYERS
A1: WHO | B1: PAID | C1: TO PAY | D1: ATTEND | E1: PICKS
A2: =results!A7 -> BYRON | B2: NO | C2: YES | D2: YES | E2: NO
A3: =results!A16 -> JOHN C | B3: NO | C3: YES | D3: YES | E3: NO
A4: =results!A25 -> MIKE H | B4: NO | C4: YES | D4: YES | E4: NO
A5: =results!A34 -> STEVER | B5: NO | C5: YES | D5: YES | E5: NO
A6: =results!G7 -> ROB W | B6: NO | C6: YES | D6: YES | E6: NO
A7: =results!G16 -> CRAIG T | B7: NO | C7: YES | D7: NO | E7: NO
A8: =results!G25 -> ANDY W | B8: NO | C8: YES | D8: YES | E8: NO
A9: =results!G34 -> STU D | B9: NO | C9: YES | D9: NO | E9: NO

Sheet webquery
A1: 1 | B1: 2 | C1: 3 | D1: 4 | E1: 5 | F1: 6 | G1: 7 | H1: 8 | I1: 9 | J1: 10 | M1: 11 | Q1: 10 | S1: 11 | T1: 12 | U1: 13 | V1: 14 | W1: 15
B2: from | C2: https://www.msn.com/en-us/sports/golf/leaderboard | R2: Index: | S2: 3 | T2: 4 | U2: 6 | V2: 5
B3: 2017 Round 1 | T3: total | U3: t-off | V3: thru
B4: Pos | C4: Name | D4: Total | E4: Thru | F4: Today | G4: R1 | H4: R2 | I4: R3 | J4: R4 | K4: S | L4: Strokes | R4: 1 | S4: =SUBSTITUTE(INDEX($A$4:$J$159,R4,$S$2),"*","") -> Name | T4: =IF(SUBSTITUTE(INDEX($A$4:$L$159,R4,$T$2),"+","")="E",0,IF(SUBSTITUTE(INDEX($A$4:$L$159,R4,$T$2),"+","")="MC",100,SUBSTITUTE(INDEX($A$4:$L$159,R4,$T$2),"+",""))) -> Total | U4: =IF(ISERROR(INDEX($A$4:$J$159,R4,$U$2)+TIME(5,0,0)),"",INDEX($A$4:$J$159,R4,$U$2)+TIME(5,0,0)) ->  | V4: =INDEX($A$4:$N$159,R4,$V$2) -> Thru
B5: 1 | C5: Charley Hoffman | D5: -4 | E5: 18 | F5: 3 | G5: 65 | H5: 75 | I5: - | J5: - | K5: 140 | L5: - | R5: 2 | S5: =SUBSTITUTE(INDEX($A$4:$J$159,R5,$S$2),"*","") -> Charley Hoffman | T5: =IF(SUBSTITUTE(INDEX($A$4:$L$159,R5,$T$2),"+","")="E",0,IF(SUBSTITUTE(INDEX($A$4:$L$159,R5,$T$2),"+","")="MC",100,SUBSTITUTE(INDEX($A$4:$L$159,R5,$T$2),"+",""))) -> -4 | U5: =IF(ISERROR(INDEX($A$4:$J$159,R5,$U$2)+TIME(5,0,0)),"",INDEX($A$4:$J$159,R5,$U$2)+TIME(5,0,0)) -> 3.208333333 | V5: =INDEX($A$4:$N$159,R5,$V$2) -> 18
B6: 1 | C6: Sergio Garcia | D6: -4 | E6: 18 | F6: -3 | G6: 71 | H6: 69 | I6: - | J6: - | K6: 140 | L6: - | R6: 3 | S6: Sergio Garcia | T6: -4 | U6: -2.791666667 | V6: 18
B7: 1 | C7: Thomas Pieters | D7: -4 | E7: 18 | F7: -4 | G7: 72 | H7: 68 | I7: - | J7: - | K7: 140 | L7: - | R7: 4 | S7: Thomas Pieters | T7: -4 | U7: -3.791666667 | V7: 18
B8: 1 | C8: Rickie Fowler | D8: -4 | E8: 18 | F8: -5 | G8: 73 | H8: 67 | I8: - | J8: - | K8: 140 | L8: - | R8: 5 | S8: Rickie Fowler | T8: -4 | U8: -4.791666667 | V8: 18
B9: 5 | C9: William McGirt | D9: -2 | E9: 18 | F9: 1 | G9: 69 | H9: 73 | I9: - | J9: - | K9: 142 | L9: - | R9: 6 | S9: William McGirt | T9: -2 | U9: 1.208333333 | V9: 18
B10: 6 | C10: Ryan Moore | D10: -1 | E10: 18 | F10: -3 | G10: 74 | H10: 69 | I10: - | J10: - | K10: 143 | L10: - | R10: 7 | S10: Ryan Moore | T10: -1 | U10: -2.791666667 | V10: 18
B11: 6 | C11: Jon Rahm | D11: -1 | E11: 18 | F11: -2 | G11: 73 | H11: 70 | I11: - | J11: - | K11: 143 | L11: - | R11: 8 | S11: Jon Rahm | T11: -1 | U11: -1.791666667 | V11: 18
B12: 6 | C12: Fred Couples | D12: -1 | E12: 18 | F12: -2 | G12: 73 | H12: 70 | I12: - | J12: - | K12: 143 | L12: - | R12: 9 | S12: Fred Couples | T12: -1 | U12: -1.791666667 | V12: 18
B13: 6 | C13: Justin Rose | D13: -1 | E13: 18 | F13: E | G13: 71 | H13: 72 | I13: - | J13: - | K13: 143 | L13: - | R13: 10 | S13: Justin Rose | T13: -1 | V13: 18
B14: 10 | C14: Adam Scott | D14: E | E14: 18 | F14: -3 | G14: 75 | H14: 69 | I14: - | J14: - | K14: 144 | L14: - | R14: 11 | S14: Adam Scott | T14: 0 | U14: -2.791666667 | V14: 18
B15: 10 | C15: Jordan Spieth | D15: E | E15: 18 | F15: -3 | G15: 75 | H15: 69 | I15: - | J15: - | K15: 144 | L15: - | R15: 12 | S15: Jordan Spieth | T15: 0 | U15: -2.791666667 | V15: 18
B16: 10 | C16: Phil Mickelson | D16: E | E16: 18 | F16: 1 | G16: 71 | H16: 73 | I16: - | J16: - | K16: 144 | L16: - | R16: 13 | S16: Phil Mickelson | T16: 0 | U16: 1.208333333 | V16: 18
B17: 13 | C17: Matt Kuchar | D17: 1 | E17: 18 | F17: 1 | G17: 72 | H17: 73 | I17: - | J17: - | K17: 145 | L17: - | R17: 14 | S17: Matt Kuchar | T17: 1 | U17: 1.208333333 | V17: 18
B18: 13 | C18: Rory McIlroy | D18: 1 | E18: 18 | F18: 1 | G18: 72 | H18: 73 | I18: - | J18: - | K18: 145 | L18: - | R18: 15 | S18: Rory McIlroy | T18: 1 | U18: 1.208333333 | V18: 18
B19: 13 | C19: Soren Kjeldsen | D19: 1 | E19: 18 | F19: 1 | G19: 72 | H19: 73 | I19: - | J19: - | K19: 145 | L19: - | R19: 16 | S19: Soren Kjeldsen | T19: 1 | U19: 1.208333333 | V19: 18
B20: 16 | C20: Charl Schwartzel | D20: 2 | E20: 18 | F20: E | G20: 74 | H20: 72 | I20: - | J20: - | K20: 146 | L20: - | R20: 17 | S20: Charl Schwartzel | T20: 2 | V20: 18
B21: 16 | C21: Hideki Matsuyama | D21: 2 | E21: 18 | F21: -2 | G21: 76 | H21: 70 | I21: - | J21: - | K21: 146 | L21: - | R21: 18 | S21: Hideki Matsuyama | T21: 2 | U21: -1.791666667 | V21: 18
B22: 16 | C22: Martin Kaymer | D22: 2 | E22: 18 | F22: -4 | G22: 78 | H22: 68 | I22: - | J22: - | K22: 146 | L22: - | R22: 19 | S22: Martin Kaymer | T22: 2 | U22: -3.791666667 | V22: 18
B23: 19 | C23: Jason Dufner | D23: 3 | E23: 18 | F23: 4 | G23: 71 | H23: 76 | I23: - | J23: - | K23: 147 | L23: - | R23: 20 | S23: Jason Dufner | T23: 3 | U23: 4.208333333 | V23: 18
B24: 19 | C24: Ernie Els | D24: 3 | E24: 18 | F24: 3 | G24: 72 | H24: 75 | I24: - | J24: - | K24: 147 | L24: - | R24: 21 | S24: Ernie Els | T24: 3 | U24: 3.208333333 | V24: 18
B25: 19 | C25: Lee Westwood | D25: 3 | E25: 18 | F25: 5 | G25: 70 | H25: 77 | I25: - | J25: - | K25: 147 | L25: - | R25: 22 | S25: Lee Westwood | T25: 3 | U25: 5.208333333 | V25: 18
B26: 19 | C26: Bill Haas | D26: 3 | E26: 18 | F26: E | G26: 75 | H26: 72 | I26: - | J26: - | K26: 147 | L26: - | R26: 23 | S26: Bill Haas | T26: 3 | V26: 18
B27: 19 | C27: Marc Leishman | D27: 3 | E27: 18 | F27: 2 | G27: 73 | H27: 74 | I27: - | J27: - | K27: 147 | L27: - | R27: 24 | S27: Marc Leishman | T27: 3 | U27: 2.208333333 | V27: 18
B28: 19 | C28: Jimmy Walker | D28: 3 | E28: 18 | F28: -1 | G28: 76 | H28: 71 | I28: - | J28: - | K28: 147 | L28: - | R28: 25 | S28: Jimmy Walker | T28: 3 | U28: -0.7916666667 | V28: 18
B29: 19 | C29: Russell Henley | D29: 3 | E29: 18 | F29: 4 | G29: 71 | H29: 76 | I29: - | J29: - | K29: 147 | L29: - | R29: 26 | S29: Russell Henley | T29: 3 | U29: 4.208333333 | V29: 18
B30: 19 | C30: Brendan Steele | D30: 3 | E30: 18 | F30: 1 | G30: 74 | H30: 73 | I30: - | J30: - | K30: 147 | L30: - | R30: 27 | S30: Brendan Steele | T30: 3 | U30: 1.208333333 | V30: 18
B31: 19 | C31: Stewart Hagestad | D31: 3 | E31: 18 | F31: 1 | G31: 74 | H31: 73 | I31: - | J31: - | K31: 147 | L31: - | R31: 28 | S31: Stewart Hagestad | T31: 3 | U31: 1.208333333 | V31: 18
B32: 19 | C32: Brian Stuard | D32: 3 | E32: 18 | F32: -2 | G32: 77 | H32: 70 | I32: - | J32: - | K32: 147 | L32: - | R32: 29 | S32: Brian Stuard | T32: 3 | U32: -1.791666667 | V32: 18
B33: 19 | C33: Kevin Chappell | D33: 3 | E33: 18 | F33: 4 | G33: 71 | H33: 76 | I33: - | J33: - | K33: 147 | L33: - | R33: 30 | S33: Kevin Chappell | T33: 3 | U33: 4.208333333 | V33: 18
B34: 19 | C34: Paul Casey | D34: 3 | E34: 18 | F34: 3 | G34: 72 | H34: 75 | I34: - | J34: - | K34: 147 | L34: - | R34: 31 | S34: Paul Casey | T34: 3 | U34: 3.208333333 | V34: 18
B35: 19 | C35: Brooks Koepka | D35: 3 | E35: 18 | F35: 1 | G35: 74 | H35: 73 | I35: - | J35: - | K35: 147 | L35: - | R35: 32 | S35: Brooks Koepka | T35: 3 | U35: 1.208333333 | V35: 18
B36: 32 | C36: Pat Perez | D36: 4 | E36: 18 | F36: 2 | G36: 74 | H36: 74 | I36: - | J36: - | K36: 148 | L36: - | R36: 33 | S36: Pat Perez | T36: 4 | U36: 2.208333333 | V36: 18
B37: 32 | C37: Steve Stricker | D37: 4 | E37: 18 | F37: 1 | G37: 75 | H37: 73 | I37: - | J37: - | K37: 148 | L37: - | R37: 34 | S37: Steve Stricker | T37: 4 | U37: 1.208333333 | V37: 18
B38: 32 | C38: Louis Oosthuizen | D38: 4 | E38: 18 | F38: -1 | G38: 77 | H38: 71 | I38: - | J38: - | K38: 148 | L38: - | R38: 35 | S38: Louis Oosthuizen | T38: 4 | U38: -0.7916666667 | V38: 18
B39: 35 | C39: Byeong-Hun An | D39: 5 | E39: 18 | F39: 1 | G39: 76 | H39: 73 | I39: - | J39: - | K39: 149 | L39: - | R39: 36 | S39: Byeong-Hun An | T39: 5 | U39: 1.208333333 | V39: 18
B40: 35 | C40: Bernd Wiesberger | D40: 5 | E40: 18 | F40: E | G40: 77 | H40: 72 | I40: - | J40: - | K40: 149 | L40: - | R40: 37 | S40: Bernd Wiesberger | T40: 5 | V40: 18
B41: 35 | C41: Emiliano Grillo | D41: 5 | E41: 18 | F41: -2 | G41: 79 | H41: 70 | I41: - | J41: - | K41: 149 | L41: - | R41: 38 | S41: Emiliano Grillo | T41: 5 | U41: -1.791666667 | V41: 18
B42: 35 | C42: Justin Thomas | D42: 5 | E42: 18 | F42: 4 | G42: 73 | H42: 76 | I42: - | J42: - | K42: 149 | L42: - | R42: 39 | S42: Justin Thomas | T42: 5 | U42: 4.208333333 | V42: 18
B43: 35 | C43: Daniel Summerhays | D43: 5 | E43: 18 | F43: 3 | G43: 74 | H43: 75 | I43: - | J43: - | K43: 149 | L43: - | R43: 40 | S43: Daniel Summerhays | T43: 5 | U43: 3.208333333 | V43: 18
B44: 35 | C44: Adam Hadwin | D44: 5 | E44: 18 | F44: 2 | G44: 75 | H44: 74 | I44: - | J44: - | K44: 149 | L44: - | R44: 41 | S44: Adam Hadwin | T44: 5 | U44: 2.208333333 | V44: 18
B45: 35 | C45: Kevin Kisner | D45: 5 | E45: 18 | F45: 3 | G45: 74 | H45: 75 | I45: - | J45: - | K45: 149 | L45: - | R45: 42 | S45: Kevin Kisner | T45: 5 | U45: 3.208333333 | V45: 18
B46: 35 | C46: Andy Sullivan | D46: 5 | E46: 18 | F46: 6 | G46: 71 | H46: 78 | I46: - | J46: - | K46: 149 | L46: - | R46: 43 | S46: Andy Sullivan | T46: 5 | U46: 6.208333333 | V46: 18
B47: 35 | C47: Matthew Fitzpatrick | D47: 5 | E47: 18 | F47: 6 | G47: 71 | H47: 78 | I47: - | J47: - | K47: 149 | L47: - | R47: 44 | S47: Matthew Fitzpatrick | T47: 5 | U47: 6.208333333 | V47: 18
B48: 35 | C48: Brandt Snedeker | D48: 5 | E48: 18 | F48: 2 | G48: 75 | H48: 74 | I48: - | J48: - | K48: 149 | L48: - | R48: 45 | S48: Brandt Snedeker | T48: 5 | U48: 2.208333333 | V48: 18
B49: 45 | C49: James Hahn | D49: 6 | E49: 18 | F49: 3 | G49: 75 | H49: 75 | I49: - | J49: - | K49: 150 | L49: - | R49: 46 | S49: James Hahn | T49: 6 | U49: 3.208333333 | V49: 18
B50: 45 | C50: Ross Fisher | D50: 6 | E50: 18 | F50: 2 | G50: 76 | H50: 74 | I50: - | J50: - | K50: 150 | L50: - | R50: 47 | S50: Ross Fisher | T50: 6 | U50: 2.208333333 | V50: 18
B51: 45 | C51: Curtis Luck | D51: 6 | E51: 18 | F51: E | G51: 78 | H51: 72 | I51: - | J51: - | K51: 150 | L51: - | R51: 48 | S51: Curtis Luck | T51: 6 | V51: 18
B52: 45 | C52: Larry Mize | D52: 6 | E52: 18 | F52: 4 | G52: 74 | H52: 76 | I52: - | J52: - | K52: 150 | L52: - | R52: 49 | S52: Larry Mize | T52: 6 | U52: 4.208333333 | V52: 18
B53: 45 | C53: J.B. Holmes | D53: 6 | E53: 18 | F53: E | G53: 78 | H53: 72 | I53: - | J53: - | K53: 150 | L53: - | R53: 50 | S53: J.B. Holmes | T53: 6 | V53: 18
B54: 45 | C54: Daniel Berger | D54: 6 | E54: 18 | F54: 1 | G54: 77 | H54: 73 | I54: - | J54: - | K54: 150 | L54: - | R54: 51 | S54: Daniel Berger | T54: 6 | U54: 1.208333333 | V54: 18
B55: 45 | C55: Francesco Molinari | D55: 6 | E55: 18 | F55: E | G55: 78 | H55: 72 | I55: - | J55: - | K55: 150 | L55: - | R55: 52 | S55: Francesco Molinari | T55: 6 | V55: 18
B56: 45 | C56: Branden Grace | D56: 6 | E56: 18 | F56: 2 | G56: 76 | H56: 74 | I56: - | J56: - | K56: 150 | L56: - | R56: 53 | S56: Branden Grace | T56: 6 | U56: 2.208333333 | V56: 18
B57: 45 | C57: Jason Day | D57: 6 | E57: 18 | F57: 4 | G57: 74 | H57: 76 | I57: - | J57: - | K57: 150 | L57: - | R57: 54 | S57: Jason Day | T57: 6 | U57: 4.208333333 | V57: 18
C58: Danny Willett | D58: 7 | E58: 18 | F58: 6 | G58: 73 | H58: 78 | I58: - | J58: - | K58: 151 | L58: - | R58: 55 | S58: Danny Willett | T58: 7 | U58: 6.208333333 | V58: 18
C59: Yuta Ikeda | D59: 7 | E59: 18 | F59: 5 | G59: 74 | H59: 77 | I59: - | J59: - | K59: 151 | L59: - | R59: 56 | S59: Yuta Ikeda | T59: 7 | U59: 5.208333333 | V59: 18
C60: Chris Wood | D60: 7 | E60: 18 | F60: 5 | G60: 74 | H60: 77 | I60: - | J60: - | K60: 151 | L60: - | R60: 57 | S60: Chris Wood | T60: 7 | U60: 5.208333333 | V60: 18
C61: Shane Lowry | D61: 7 | E61: 18 | F61: 7 | G61: 72 | H61: 79 | I61: - | J61: - | K61: 151 | L61: - | R61: 58 | S61: Shane Lowry | T61: 7 | U61: 7.208333333 | V61: 18
C62: Billy Hurley III | D62: 7 | E62: 18 | F62: 4 | G62: 75 | H62: 76 | I62: - | J62: - | K62: 151 | L62: - | R62: 59 | S62: Billy Hurley III | T62: 7 | U62: 4.208333333 | V62: 18
C63: Jim Furyk | D63: 7 | E63: 18 | F63: 1 | G63: 78 | H63: 73 | I63: - | J63: - | K63: 151 | L63: - | R63: 60 | S63: Jim Furyk | T63: 7 | U63: 1.208333333 | V63: 18
C64: Zach Johnson | D64: 7 | E64: 18 | F64: 2 | G64: 77 | H64: 74 | I64: - | J64: - | K64: 151 | L64: - | R64: 61 | S64: Zach Johnson | T64: 7 | U64: 2.208333333 | V64: 18
C65: Kevin Na | D65: 7 | E65: 18 | F65: 3 | G65: 76 | H65: 75 | I65: - | J65: - | K65: 151 | L65: - | R65: 62 | S65: Kevin Na | T65: 7 | U65: 3.208333333 | V65: 18
C66: Rod Pampling | D66: 8 | E66: 18 | F66: 6 | G66: 74 | H66: 78 | I66: - | J66: - | K66: 152 | L66: - | R66: 63 | S66: Rod Pampling | T66: 8 | U66: 6.208333333 | V66: 18
C67: Webb Simpson | D67: 8 | E67: 18 | F67: 5 | G67: 75 | H67: 77 | I67: - | J67: - | K67: 152 | L67: - | R67: 64 | S67: Webb Simpson | T67: 8 | U67: 5.208333333 | V67: 18
C68: Henrik Stenson | D68: 8 | E68: 18 | F68: 3 | G68: 77 | H68: 75 | I68: - | J68: - | K68: 152 | L68: - | R68: 65 | S68: Henrik Stenson | T68: 8 | U68: 3.208333333 | V68: 18
C69: Alex Noren | D69: 8 | E69: 18 | F69: 6 | G69: 74 | H69: 78 | I69: - | J69: - | K69: 152 | L69: - | R69: 66 | S69: =SUBSTITUTE(INDEX($A$4:$J$159,R69,$S$2),"*","") -> Alex Noren | T69: =IF(SUBSTITUTE(INDEX($A$4:$L$159,R69,$T$2),"+","")="E",0,IF(SUBSTITUTE(INDEX($A$4:$L$159,R69,$T$2),"+","")="MC",100,SUBSTITUTE(INDEX($A$4:$L$159,R69,$T$2),"+",""))) -> 8 | U69: =IF(ISERROR(INDEX($A$4:$J$159,R69,$U$2)+TIME(5,0,0)),"",INDEX($A$4:$J$159,R69,$U$2)+TIME(5,0,0)) -> 6.208333333 | V69: =INDEX($A$4:$N$159,R69,$V$2) -> 18
C70: Bubba Watson | D70: 8 | E70: 18 | F70: 6 | G70: 74 | H70: 78 | I70: - | J70: - | K70: 152 | L70: - | R70: 67 | S70: Bubba Watson | T70: 8 | U70: 6.208333333 | V70: 18
C71: Scott Piercy | D71: 8 | E71: 18 | F71: 7 | G71: 73 | H71: 79 | I71: - | J71: - | K71: 152 | L71: - | R71: 68 | S71: Scott Piercy | T71: 8 | U71: 7.208333333 | V71: 18
C72: Tommy Fleetwood | D72: 8 | E72: 18 | F72: 2 | G72: 78 | H72: 74 | I72: - | J72: - | K72: 152 | L72: - | R72: 69 | S72: Tommy Fleetwood | T72: 8 | U72: 2.208333333 | V72: 18
C73: Russell Knox | D73: 8 | E73: 18 | F73: 4 | G73: 76 | H73: 76 | I73: - | J73: - | K73: 152 | L73: - | R73: 70 | S73: Russell Knox | T73: 8 | U73: 4.208333333 | V73: 18
C74: Rafa Cabrera Bello | D74: 8 | E74: 18 | F74: 5 | G74: 75 | H74: 77 | I74: - | J74: - | K74: 152 | L74: - | R74: 71 | S74: Rafa Cabrera Bello | T74: 8 | U74: 5.208333333 | V74: 18
C75: Hudson Swafford | D75: 9 | E75: 18 | F75: 4 | G75: 77 | H75: 76 | I75: - | J75: - | K75: 153 | L75: - | R75: 72 | S75: Hudson Swafford | T75: 9 | U75: 4.208333333 | V75: 18
C76: Brad Dalke | D76: 9 | E76: 18 | F76: 3 | G76: 78 | H76: 75 | I76: - | J76: - | K76: 153 | L76: - | R76: 73 | S76: Brad Dalke | T76: 9 | U76: 3.208333333 | V76: 18
C77: Jose Maria Olazabal | D77: 9 | E77: 18 | F77: 4 | G77: 77 | H77: 76 | I77: - | J77: - | K77: 153 | L77: - | R77: 74 | S77: Jose Maria Olazabal | T77: 9 | U77: 4.208333333 | V77: 18
C78: Vijay Singh | D78: 9 | E78: 18 | F78: 3 | G78: 78 | H78: 75 | I78: - | J78: - | K78: 153 | L78: - | R78: 75 | S78: Vijay Singh | T78: 9 | U78: 3.208333333 | V78: 18
C79: Patrick Reed | D79: 9 | E79: 18 | F79: 5 | G79: 76 | H79: 77 | I79: - | J79: - | K79: 153 | L79: - | R79: 76 | S79: Patrick Reed | T79: 9 | U79: 5.208333333 | V79: 18
C80: Bernhard Langer | D80: 9 | E80: 18 | F80: 6 | G80: 75 | H80: 78 | I80: - | J80: - | K80: 153 | L80: - | R80: 77 | S80: Bernhard Langer | T80: 9 | U80: 6.208333333 | V80: 18
C81: Sean O'Hair | D81: 9 | E81: 18 | F81: 5 | G81: 76 | H81: 77 | I81: - | J81: - | K81: 153 | L81: - | R81: 78 | S81: Sean O'Hair | T81: 9 | U81: 5.208333333 | V81: 18
C82: Ian Woosnam | D82: 10 | E82: 18 | F82: 6 | G82: 76 | H82: 78 | I82: - | J82: - | K82: 154 | L82: - | R82: 79 | S82: Ian Woosnam | T82: 10 | U82: 6.208333333 | V82: 18
C83: Angel Cabrera | D83: 10 | E83: 18 | F83: 3 | G83: 79 | H83: 75 | I83: - | J83: - | K83: 154 | L83: - | R83: 80 | S83: Angel Cabrera | T83: 10 | U83: 3.208333333 | V83: 18
C84: Jhonattan Vegas | D84: 10 | E84: 18 | F84: 4 | G84: 78 | H84: 76 | I84: - | J84: - | K84: 154 | L84: - | R84: 81 | S84: Jhonattan Vegas | T84: 10 | U84: 4.208333333 | V84: 18
C85: Trevor Immelman | D85: 11 | E85: 18 | F85: 4 | G85: 79 | H85: 76 | I85: - | J85: - | K85: 155 | L85: - | R85: 82 | S85: Trevor Immelman | T85: 11 | U85: 4.208333333 | V85: 18
C86: Mike Weir | D86: 11 | E86: 18 | F86: 7 | G86: 76 | H86: 79 | I86: - | J86: - | K86: 155 | L86: - | R86: 83 | S86: Mike Weir | T86: 11 | U86: 7.208333333 | V86: 18
C87: Gary Woodland | D87: 11 | E87: 18 | F87: 8 | G87: 75 | H87: 80 | I87: - | J87: - | K87: 155 | L87: - | R87: 84 | S87: Gary Woodland | T87: 11 | U87: 8.208333333 | V87: 18
C88: Mark O'Meara | D88: 12 | E88: 18 | F88: 6 | G88: 78 | H88: 78 | I88: - | J88: - | K88: 156 | L88: - | R88: 85 | S88: Mark O'Meara | T88: 12 | U88: 6.208333333 | V88: 18
C89: Hideto Tanihara | D89: 12 | E89: 18 | F89: 8 | G89: 76 | H89: 80 | I89: - | J89: - | K89: 156 | L89: - | R89: 86 | S89: Hideto Tanihara | T89: 12 | U89: 8.208333333 | V89: 18
C90: Jeung-hun Wang | D90: 12 | E90: 18 | F90: 6 | G90: 78 | H90: 78 | I90: - | J90: - | K90: 156 | L90: - | R90: 87 | S90: Jeung-hun Wang | T90: 12 | U90: 6.208333333 | V90: 18
C91: Si Woo Kim | D91: 12 | E91: 18 | F91: 9 | G91: 75 | H91: 81 | I91: - | J91: - | K91: 156 | L91: - | R91: 88 | S91: Si Woo Kim | T91: 12 | U91: 9.208333333 | V91: 18
B92: 87 | C92: Dustin Johnson | D92: - | E92: 2:03 PM | F92: - | G92: - | H92: - | I92: - | J92: - | K92: - | L92: - | R92: 89 | S92: Dustin Johnson | T92: - | V92: 2:03 PM
C93: Roberto Castro | D93: 13 | E93: 18 | F93: 6 | G93: 79 | H93: 78 | I93: - | J93: - | K93: 157 | L93: - | R93: 90 | S93: Roberto Castro | T93: 13 | U93: 6.208333333 | V93: 18
C94: Scott Gregory | D94: 13 | E94: 18 | F94: 3 | G94: 82 | H94: 75 | I94: - | J94: - | K94: 157 | L94: - | R94: 91 | S94: Scott Gregory | T94: 13 | U94: 3.208333333 | V94: 18
C95: Tyrrell Hatton | D95: 14 | E95: 18 | F95: 6 | G95: 80 | H95: 78 | I95: - | J95: - | K95: 158 | L95: - | R95: 92 | S95: Tyrrell Hatton | T95: 14 | U95: 6.208333333 | V95: 18
C96: Mackenzie Hughes | D96: 15 | E96: 18 | F96: 8 | G96: 79 | H96: 80 | I96: - | J96: - | K96: 159 | L96: - | R96: 93 | S96: Mackenzie Hughes | T96: 15 | U96: 8.208333333 | V96: 18
C97: Sandy Lyle | D97: 16 | E97: 18 | F97: 11 | G97: 77 | H97: 83 | I97: - | J97: - | K97: 160 | L97: - | R97: 94 | S97: Sandy Lyle | T97: 16 | U97: 11.20833333 | V97: 18
C98: Toto Gana | D98: 17 | E98: 18 | F98: 8 | G98: 81 | H98: 80 | I98: - | J98: - | K98: 161 | L98: - | R98: 95 | S98: Toto Gana | T98: 17 | U98: 8.208333333 | V98: 18
R99: 96 | U99: 05:00:00 | V99: 0
R100: 97 | U100: 05:00:00 | V100: 0
R101: 98 | U101: 05:00:00 | V101: 0
R102: 99 | U102: 05:00:00 | V102: 0
R103: 100 | U103: 05:00:00 | V103: 0
R104: 101 | U104: 05:00:00 | V104: 0
R105: 102 | U105: 05:00:00 | V105: 0
R106: 103 | U106: 05:00:00 | V106: 0
R107: 104 | U107: 05:00:00 | V107: 0
R108: 105 | U108: 05:00:00 | V108: 0
R109: 106 | U109: 05:00:00 | V109: 0
R110: 107 | U110: 05:00:00 | V110: 0
R111: 108 | U111: 05:00:00 | V111: 0
R112: 109 | U112: 05:00:00 | V112: 0
R113: 110 | U113: 05:00:00 | V113: 0
R114: 111 | U114: 05:00:00 | V114: 0
R115: 112 | U115: 05:00:00 | V115: 0
R116: 113 | U116: 05:00:00 | V116: 0
R117: 114 | U117: 05:00:00 | V117: 0
R118: 115 | U118: 05:00:00 | V118: 0
R119: 116 | U119: 05:00:00 | V119: 0
R120: 117 | U120: 05:00:00 | V120: 0
R121: 118 | U121: 05:00:00 | V121: 0
R122: 119 | U122: 05:00:00 | V122: 0
R123: 120 | U123: 05:00:00 | V123: 0
R124: 121 | U124: 05:00:00 | V124: 0
R125: 122 | U125: 05:00:00 | V125: 0
R126: 123 | U126: 05:00:00 | V126: 0
R127: 124 | U127: 05:00:00 | V127: 0
R128: 125 | U128: 05:00:00 | V128: 0
R129: 126 | U129: 05:00:00 | V129: 0
R130: 127 | U130: 05:00:00 | V130: 0
R131: 128 | U131: 05:00:00 | V131: 0
R132: 129 | U132: 05:00:00 | V132: 0
R133: 130 | S133: =SUBSTITUTE(INDEX($A$4:$J$159,R133,$S$2),"*","") ->  | T133: =IF(SUBSTITUTE(INDEX($A$4:$L$159,R133,$T$2),"+","")="E",0,IF(SUBSTITUTE(INDEX($A$4:$L$159,R133,$T$2),"+","")="MC",100,SUBSTITUTE(INDEX($A$4:$L$159,R133,$T$2),"+",""))) ->  | U133: =IF(ISERROR(INDEX($A$4:$J$159,R133,$U$2)+TIME(5,0,0)),"",INDEX($A$4:$J$159,R133,$U$2)+TIME(5,0,0)) -> 05:00:00 | V133: =INDEX($A$4:$N$159,R133,$V$2) -> 0
R134: 131 | U134: 05:00:00 | V134: 0
R135: 132 | U135: 05:00:00 | V135: 0
R136: 133 | U136: 05:00:00 | V136: 0
R137: 134 | U137: 05:00:00 | V137: 0
R138: 135 | U138: 05:00:00 | V138: 0
R139: 136 | U139: 05:00:00 | V139: 0
R140: 137 | U140: 05:00:00 | V140: 0
R141: 138 | U141: 05:00:00 | V141: 0
R142: 139 | U142: 05:00:00 | V142: 0
R143: 140 | U143: 05:00:00 | V143: 0
R144: 141 | U144: 05:00:00 | V144: 0
R145: 142 | U145: 05:00:00 | V145: 0
R146: 143 | U146: 05:00:00 | V146: 0
R147: 144 | U147: 05:00:00 | V147: 0
R148: 145 | U148: 05:00:00 | V148: 0
R149: 146 | U149: 05:00:00 | V149: 0
R150: 147 | U150: 05:00:00 | V150: 0
R151: 148 | U151: 05:00:00 | V151: 0
R152: 149 | U152: 05:00:00 | V152: 0
R153: 150 | U153: 05:00:00 | V153: 0
R154: 151 | U154: 05:00:00 | V154: 0
R155: 152 | U155: 05:00:00 | V155: 0
R156: 153 | U156: 05:00:00 | V156: 0
R157: 154 | U157: 05:00:00 | V157: 0
R158: 155 | U158: 05:00:00 | V158: 0
R159: 156 | U159: 05:00:00 | V159: 0

Sheet results
A1: US MASTERS 2017
A4: Day | B4: 1
B6: Pick | C6: Total | D6: Hole | E6: T off time | H6: Pick | I6: Total | J6: Hole | K6: T off time | N6: Pick | O6: Total | P6: Hole | Q6: T off time
A7: ='random picks'!B2 -> BYRON | B7: =SUM(B8:B12)/5 -> 3.2 | G7: ='random picks'!F2 -> ROB W | H7: =SUM(H8:H12)/5 -> 6 | M7: ='random picks'!J2 -> 0 | N7: =SUM(N8:N12)/5 -> 0
A8: =BLANKS!A7 -> Rory McIlroy | B8: =BLANKS!B7 -> 3 | C8: =VALUE(IF($A8="","",VLOOKUP($A8,webquery!S:V,2,FALSE))) -> 1 | D8: =VLOOKUP($A8,webquery!$S:V,4,FALSE) -> 18 | E8: 1.5 | G8: =BLANKS!D7 -> Justin Rose | H8: =BLANKS!E7 -> 7 | I8: =VALUE(IF($G8="","",VLOOKUP($G8,webquery!S:V,2,FALSE))) -> -1 | J8: =VLOOKUP($G8,webquery!$S:$V,4,FALSE) -> 18 | K8: 1.5 | M8: =BLANKS!G7 -> 0 | N8: =BLANKS!H7 -> 0 | O8: =IF($M8="","",VLOOKUP($M8,webquery!S:V,2,FALSE)) ->  | P8: =IF(Q8<1,"",VLOOKUP($M8,webquery!$S:$V,4,FALSE)) ->  | Q8: 1.5
A9: =BLANKS!A8 -> Henrik Stenson | B9: =BLANKS!B8 -> 3 | C9: =VALUE(IF($A9="","",VLOOKUP($A9,webquery!S:V,2,FALSE))) -> 8 | D9: =VLOOKUP($A9,webquery!$S:V,4,FALSE) -> 18 | E9: 1.5 | G9: =BLANKS!D8 -> Jon Rahm | H9: =BLANKS!E8 -> 2 | I9: =VALUE(IF($G9="","",VLOOKUP($G9,webquery!S:V,2,FALSE))) -> -1 | J9: =VLOOKUP($G9,webquery!$S:$V,4,FALSE) -> 18 | K9: 1.5 | M9: =BLANKS!G8 -> 0 | N9: =BLANKS!H8 -> 0 | O9: =IF($M9="","",VLOOKUP($M9,webquery!S:V,2,FALSE)) ->  | P9: =IF(Q9<1,"",VLOOKUP($M9,webquery!$S:$V,4,FALSE)) ->  | Q9: 1.5
A10: =BLANKS!A9 -> Matthew Fitzpatrick | B10: =BLANKS!B9 -> 6 | C10: =VALUE(IF($A10="","",VLOOKUP($A10,webquery!S:V,2,FALSE))) -> 5 | D10: =VLOOKUP($A10,webquery!$S:V,4,FALSE) -> 18 | E10: 1.5 | G10: =BLANKS!D9 -> Marc Leishman | H10: =BLANKS!E9 -> 8 | I10: =VALUE(IF($G10="","",VLOOKUP($G10,webquery!S:V,2,FALSE))) -> 3 | J10: =VLOOKUP($G10,webquery!$S:$V,4,FALSE) -> 18 | K10: 1.5 | M10: =BLANKS!G9 -> 0 | N10: =BLANKS!H9 -> 0 | O10: =IF($M10="","",VLOOKUP($M10,webquery!S:V,2,FALSE)) ->  | P10: =IF(Q10<1,"",VLOOKUP($M10,webquery!$S:$V,4,FALSE)) ->  | Q10: 1.5
A11: =BLANKS!A10 -> Adam Hadwin | B11: =BLANKS!B10 -> 2 | C11: =VALUE(IF($A11="","",VLOOKUP($A11,webquery!S:V,2,FALSE))) -> 5 | D11: =VLOOKUP($A11,webquery!$S:V,4,FALSE) -> 18 | E11: 1.5 | G11: =BLANKS!D10 -> Lee Westwood | H11: =BLANKS!E10 -> 6 | I11: =VALUE(IF($G11="","",VLOOKUP($G11,webquery!S:V,2,FALSE))) -> 3 | J11: =VLOOKUP($G11,webquery!$S:$V,4,FALSE) -> 18 | K11: 1.5 | M11: =BLANKS!G10 -> 0 | N11: =BLANKS!H10 -> 0 | O11: =IF($M11="","",VLOOKUP($M11,webquery!S:V,2,FALSE)) ->  | P11: =IF(Q11<1,"",VLOOKUP($M11,webquery!$S:$V,4,FALSE)) ->  | Q11: 1.5
A12: =BLANKS!A11 -> Gary Woodland | B12: =BLANKS!B11 -> 2 | C12: =VALUE(IF($A12="","",VLOOKUP($A12,webquery!S:V,2,FALSE))) -> 11 | D12: =VLOOKUP($A12,webquery!$S:V,4,FALSE) -> 18 | E12: 1.5 | G12: =BLANKS!D11 -> Charley Hoffman | H12: =BLANKS!E11 -> 7 | I12: =VALUE(IF($G12="","",VLOOKUP($G12,webquery!S:V,2,FALSE))) -> -4 | J12: =VLOOKUP($G12,webquery!$S:$V,4,FALSE) -> 18 | K12: 1.5 | M12: =BLANKS!G11 -> 0 | N12: =BLANKS!H11 -> 0 | O12: =IF($M12="","",VLOOKUP($M12,webquery!S:V,2,FALSE)) ->  | P12: =IF(Q12<1,"",VLOOKUP($M12,webquery!$S:$V,4,FALSE)) ->  | Q12: 1.5
A13: Best 3 | C13: =IF(ISERROR(SMALL(C8:C12,1)+SMALL(C8:C12,2)+SMALL(C8:C12,3)),"",SMALL(C8:C12,1)+SMALL(C8:C12,2)+SMALL(C8:C12,3)) -> 11 | D13: =IF(ISERROR(C13-B7/100),"",C13-B7/100) -> 10.968 | G13: Best 3 | I13: =IF(ISERROR(SMALL(I8:I12,1)+SMALL(I8:I12,2)+SMALL(I8:I12,3)),"",SMALL(I8:I12,1)+SMALL(I8:I12,2)+SMALL(I8:I12,3)) -> -6 | J13: =IF(ISERROR(I13-H7/100),"",I13-H7/100) -> -6.06 | M13: Best 3 | O13: =IF(ISERROR(SMALL(O8:O12,1)+SMALL(O8:O12,2)+SMALL(O8:O12,3)),"",SMALL(O8:O12,1)+SMALL(O8:O12,2)+SMALL(O8:O12,3)) ->  | P13: =IF(ISERROR(O13-N7/100),"",O13-N7/100) -> 
A14: Running position | C14: =VLOOKUP(A7,ranks!$C$4:$G$14,4,FALSE) -> 7 | D14: =VLOOKUP(A7,ranks!$C$4:$G$14,5,FALSE) -> 7 | E14: adj for pick | G14: Running position | I14: =VLOOKUP(G7,ranks!$C$4:$G$14,4,FALSE) -> 1 | J14: =VLOOKUP(G7,ranks!$C$4:$G$14,5,FALSE) -> 1 | K14: adj for pick | M14: Running position | O14: =VLOOKUP(M7,ranks!$C$4:$G$14,4,FALSE) ->  | P14: =VLOOKUP(M7,ranks!$C$4:$G$14,5,FALSE) ->  | Q14: adj for pick
A16: ='random picks'!C2 -> JOHN C | B16: =SUM(B17:B21)/5 -> 4.4 | G16: ='random picks'!G2 -> CRAIG T | H16: =SUM(H17:H21)/5 -> 4.2 | M16: ='random picks'!K2 -> 0 | N16: =SUM(N17:N21)/5 -> 0
A17: =BLANKS!A16 -> Rickie Fowler | B17: =BLANKS!B16 -> 5 | C17: =VALUE(IF($A17="","",VLOOKUP($A17,webquery!S:V,2,FALSE))) -> -4 | D17: =VLOOKUP($A17,webquery!$S:V,4,FALSE) -> 18 | E17: 1.5 | G17: =BLANKS!D16 -> Dustin Johnson | H17: =BLANKS!E16 -> 1 | K17: 1.5 | M17: =BLANKS!G16 -> 0 | N17: =BLANKS!H16 -> 0 | O17: =IF($M17="","",VLOOKUP($M17,webquery!S:V,2,FALSE)) ->  | P17: =IF(Q17<1,"",VLOOKUP($M17,webquery!$S:$V,4,FALSE)) ->  | Q17: 1.5
A18: =BLANKS!A17 -> Louis Oosthuizen | B18: =BLANKS!B17 -> 6 | C18: =VALUE(IF($A18="","",VLOOKUP($A18,webquery!S:V,2,FALSE))) -> 4 | D18: =VLOOKUP($A18,webquery!$S:V,4,FALSE) -> 18 | E18: 1.5 | G18: =BLANKS!D17 -> Sergio Garcia | H18: =BLANKS!E17 -> 8 | I18: =VALUE(IF($G18="","",VLOOKUP($G18,webquery!S:V,2,FALSE))) -> -4 | J18: =VLOOKUP($G18,webquery!$S:$V,4,FALSE) -> 18 | K18: 1.5 | M18: =BLANKS!G17 -> 0 | N18: =BLANKS!H17 -> 0 | O18: =IF($M18="","",VLOOKUP($M18,webquery!S:V,2,FALSE)) ->  | P18: =IF(Q18<1,"",VLOOKUP($M18,webquery!$S:$V,4,FALSE)) ->  | Q18: 1.5
A19: =BLANKS!A18 -> Patrick Reed | B19: =BLANKS!B18 -> 4 | C19: =VALUE(IF($A19="","",VLOOKUP($A19,webquery!S:V,2,FALSE))) -> 9 | D19: =VLOOKUP($A19,webquery!$S:V,4,FALSE) -> 18 | E19: 1.5 | G19: =BLANKS!D18 -> Brooks Koepka | H19: =BLANKS!E18 -> 3 | I19: =VALUE(IF($G19="","",VLOOKUP($G19,webquery!S:V,2,FALSE))) -> 3 | J19: =VLOOKUP($G19,webquery!$S:$V,4,FALSE) -> 18 | K19: 1.5 | M19: =BLANKS!G18 -> 0 | N19: =BLANKS!H18 -> 0 | O19: =IF($M19="","",VLOOKUP($M19,webquery!S:V,2,FALSE)) ->  | P19: =IF(Q19<1,"",VLOOKUP($M19,webquery!$S:$V,4,FALSE)) ->  | Q19: 1.5
A20: =BLANKS!A19 -> Jimmy Walker | B20: =BLANKS!B19 -> 3 | C20: =VALUE(IF($A20="","",VLOOKUP($A20,webquery!S:V,2,FALSE))) -> 3 | D20: =VLOOKUP($A20,webquery!$S:V,4,FALSE) -> 18 | E20: 1.5 | G20: =BLANKS!D19 -> Matt Kuchar | H20: =BLANKS!E19 -> 1 | I20: =VALUE(IF($G20="","",VLOOKUP($G20,webquery!S:V,2,FALSE))) -> 1 | J20: =VLOOKUP($G20,webquery!$S:$V,4,FALSE) -> 18 | K20: 1.5 | M20: =BLANKS!G19 -> 0 | N20: =BLANKS!H19 -> 0 | O20: =IF($M20="","",VLOOKUP($M20,webquery!S:V,2,FALSE)) ->  | P20: =IF(Q20<1,"",VLOOKUP($M20,webquery!$S:$V,4,FALSE)) ->  | Q20: 1.5
A21: =BLANKS!A20 -> Zach Johnson | B21: =BLANKS!B20 -> 4 | C21: =VALUE(IF($A21="","",VLOOKUP($A21,webquery!S:V,2,FALSE))) -> 7 | D21: =VLOOKUP($A21,webquery!$S:V,4,FALSE) -> 18 | E21: 1.5 | G21: =BLANKS!D20 -> Danny Willett | H21: =BLANKS!E20 -> 8 | I21: =VALUE(IF($G21="","",VLOOKUP($G21,webquery!S:V,2,FALSE))) -> 7 | J21: =VLOOKUP($G21,webquery!$S:$V,4,FALSE) -> 18 | K21: 1.5 | M21: =BLANKS!G20 -> 0 | N21: =BLANKS!H20 -> 0 | O21: =IF($M21="","",VLOOKUP($M21,webquery!S:V,2,FALSE)) ->  | P21: =IF(Q21<1,"",VLOOKUP($M21,webquery!$S:$V,4,FALSE)) ->  | Q21: 1.5
A22: Best 3 | C22: =IF(ISERROR(SMALL(C17:C21,1)+SMALL(C17:C21,2)+SMALL(C17:C21,3)),"",SMALL(C17:C21,1)+SMALL(C17:C21,2)+SMALL(C17:C21,3)) -> 3 | D22: =IF(ISERROR(C22-B16/100),"",C22-B16/100) -> 2.956 | G22: Best 3 | I22: =IF(ISERROR(SMALL(I17:I21,1)+SMALL(I17:I21,2)+SMALL(I17:I21,3)),"",SMALL(I17:I21,1)+SMALL(I17:I21,2)+SMALL(I17:I21,3)) -> 0 | J22: =IF(ISERROR(I22-H16/100),"",I22-H16/100) -> -0.042 | M22: Best 3 | O22: =IF(ISERROR(SMALL(O17:O21,1)+SMALL(O17:O21,2)+SMALL(O17:O21,3)),"",SMALL(O17:O21,1)+SMALL(O17:O21,2)+SMALL(O17:O21,3)) ->  | P22: =IF(ISERROR(O22-N16/100),"",O22-N16/100) -> 
A23: Running position | C23: =VLOOKUP(A16,ranks!$C$4:$G$14,4,FALSE) -> 4 | D23: =VLOOKUP(A16,ranks!$C$4:$G$14,5,FALSE) -> 4 | E23: adj for pick | G23: Running position | I23: =VLOOKUP(G16,ranks!$C$4:$G$14,4,FALSE) -> 2 | J23: =VLOOKUP(G16,ranks!$C$4:$G$14,5,FALSE) -> 2 | K23: adj for pick | M23: Running position | O23: =VLOOKUP(M16,ranks!$C$4:$G$14,4,FALSE) ->  | P23: =VLOOKUP(M16,ranks!$C$4:$G$14,5,FALSE) ->  | Q23: adj for pick
A25: ='random picks'!D2 -> MIKE H | B25: =SUM(B26:B30)/5 -> 4.6 | G25: ='random picks'!H2 -> ANDY W | H25: =SUM(H26:H30)/5 -> 4 | M25: ='random picks'!L2 -> 0 | N25: =SUM(N26:N30)/5 -> 0
A26: =BLANKS!A25 -> Hideki Matsuyama | B26: =BLANKS!B25 -> 4 | C26: =VALUE(IF($A26="","",VLOOKUP($A26,webquery!S:V,2,FALSE))) -> 2 | D26: =VLOOKUP($A26,webquery!$S:V,4,FALSE) -> 18 | E26: 1.5 | G26: =BLANKS!D25 -> Jordan Spieth | H26: =BLANKS!E25 -> 2 | I26: =VALUE(IF($G26="","",VLOOKUP($G26,webquery!S:V,2,FALSE))) -> 0 | J26: =VLOOKUP($G26,webquery!$S:$V,4,FALSE) -> 18 | K26: 1.5 | M26: =BLANKS!G16 -> 0 | N26: =BLANKS!H25 -> 0
A27: =BLANKS!A26 -> Bubba Watson | B27: =BLANKS!B26 -> 4 | C27: =VALUE(IF($A27="","",VLOOKUP($A27,webquery!S:V,2,FALSE))) -> 8 | D27: =VLOOKUP($A27,webquery!$S:V,4,FALSE) -> 18 | E27: 1.5 | G27: =BLANKS!D26 -> Paul Casey | H27: =BLANKS!E26 -> 7 | I27: =VALUE(IF($G27="","",VLOOKUP($G27,webquery!S:V,2,FALSE))) -> 3 | J27: =VLOOKUP($G27,webquery!$S:$V,4,FALSE) -> 18 | K27: 1.5 | M27: =BLANKS!G17 -> 0 | N27: =BLANKS!H26 -> 0
A28: =BLANKS!A27 -> Thomas Pieters | B28: =BLANKS!B27 -> 5 | C28: =VALUE(IF($A28="","",VLOOKUP($A28,webquery!S:V,2,FALSE))) -> -4 | D28: =VLOOKUP($A28,webquery!$S:V,4,FALSE) -> 18 | E28: 1.5 | G28: =BLANKS!D27 -> Brandt Snedeker | H28: =BLANKS!E27 -> 2 | I28: =VALUE(IF($G28="","",VLOOKUP($G28,webquery!S:V,2,FALSE))) -> 5 | J28: =VLOOKUP($G28,webquery!$S:$V,4,FALSE) -> 18 | K28: 1.5 | M28: =BLANKS!G18 -> 0 | N28: =BLANKS!H27 -> 0
A29: =BLANKS!A28 -> Daniel Berger | B29: =BLANKS!B28 -> 5 | C29: =VALUE(IF($A29="","",VLOOKUP($A29,webquery!S:V,2,FALSE))) -> 6 | D29: =VLOOKUP($A29,webquery!$S:V,4,FALSE) -> 18 | E29: 1.5 | G29: =BLANKS!D28 -> J.B. Holmes | H29: =BLANKS!E28 -> 8 | I29: =VALUE(IF($G29="","",VLOOKUP($G29,webquery!S:V,2,FALSE))) -> 6 | J29: =VLOOKUP($G29,webquery!$S:$V,4,FALSE) -> 18 | K29: 1.5 | M29: =BLANKS!G19 -> 0 | N29: =BLANKS!H28 -> 0
A30: =BLANKS!A29 -> Shane Lowry | B30: =BLANKS!B29 -> 5 | C30: =VALUE(IF($A30="","",VLOOKUP($A30,webquery!S:V,2,FALSE))) -> 7 | D30: =VLOOKUP($A30,webquery!$S:V,4,FALSE) -> 18 | E30: 1.5 | G30: =BLANKS!D29 -> Kevin Kisner | H30: =BLANKS!E29 -> 1 | I30: =VALUE(IF($G30="","",VLOOKUP($G30,webquery!S:V,2,FALSE))) -> 5 | J30: =VLOOKUP($G30,webquery!$S:$V,4,FALSE) -> 18 | K30: 1.5 | M30: =BLANKS!G20 -> 0 | N30: =BLANKS!H29 -> 0
A31: Best 3 | C31: =IF(ISERROR(SMALL(C26:C30,1)+SMALL(C26:C30,2)+SMALL(C26:C30,3)),"",SMALL(C26:C30,1)+SMALL(C26:C30,2)+SMALL(C26:C30,3)) -> 4 | D31: =IF(ISERROR(C31-B25/100),"",C31-B25/100) -> 3.954 | G31: Best 3 | I31: =IF(ISERROR(SMALL(I26:I30,1)+SMALL(I26:I30,2)+SMALL(I26:I30,3)),"",SMALL(I26:I30,1)+SMALL(I26:I30,2)+SMALL(I26:I30,3)) -> 8 | J31: =IF(ISERROR(I31-H25/100),"",I31-H25/100) -> 7.96 | M31: Best 3 | O31: =IF(ISERROR(SMALL(O26:O30,1)+SMALL(O26:O30,2)+SMALL(O26:O30,3)),"",SMALL(O26:O30,1)+SMALL(O26:O30,2)+SMALL(O26:O30,3)) ->  | P31: =IF(ISERROR(O31-N25/100),"",O31-N25/100) -> 
A32: Running position | C32: =VLOOKUP(A25,ranks!$C$4:$G$14,4,FALSE) -> 5 | D32: =VLOOKUP(A25,ranks!$C$4:$G$14,5,FALSE) -> 5 | E32: adj for pick | G32: Running position | I32: =VLOOKUP(G25,ranks!$C$4:$G$14,4,FALSE) -> 6 | J32: =VLOOKUP(G25,ranks!$C$4:$G$14,5,FALSE) -> 6 | K32: adj for pick | M32: Running position | O32: =VLOOKUP(M25,ranks!$C$4:$G$14,4,FALSE) ->  | P32: =VLOOKUP(M25,ranks!$C$4:$G$14,5,FALSE) ->  | Q32: adj for pick
A34: ='random picks'!E2 -> STEVER | B34: =SUM(B35:B39)/5 -> 5.8 | G34: ='random picks'!I2 -> STU D | H34: =SUM(H35:H39)/5 -> 3.8 | M34: 0
A35: =BLANKS!A34 -> Phil Mickelson | B35: =BLANKS!B34 -> 8 | C35: =VALUE(IF($A35="","",VLOOKUP($A35,webquery!S:V,2,FALSE))) -> 0 | D35: =VLOOKUP($A35,webquery!$S:V,4,FALSE) -> 18 | E35: 1.5 | G35: =BLANKS!D34 -> Jason Day | H35: =BLANKS!E34 -> 6 | I35: =VALUE(IF($G35="","",VLOOKUP($G35,webquery!S:V,2,FALSE))) -> 6 | J35: =VLOOKUP($G35,webquery!$S:$V,4,FALSE) -> 18 | K35: 1.5 | M35: =BLANKS!G34 -> 0
A36: =BLANKS!A35 -> Adam Scott | B36: =BLANKS!B35 -> 1 | C36: =VALUE(IF($A36="","",VLOOKUP($A36,webquery!S:V,2,FALSE))) -> 0 | D36: =VLOOKUP($A36,webquery!$S:V,4,FALSE) -> 18 | E36: 1.5 | G36: =BLANKS!D35 -> Justin Thomas | H36: =BLANKS!E35 -> 5 | I36: =VALUE(IF($G36="","",VLOOKUP($G36,webquery!S:V,2,FALSE))) -> 5 | J36: =VLOOKUP($G36,webquery!$S:$V,4,FALSE) -> 18 | K36: 1.5 | M36: =BLANKS!G35 -> 0
A37: =BLANKS!A36 -> Charl Schwartzel | B37: =BLANKS!B36 -> 7 | C37: =VALUE(IF($A37="","",VLOOKUP($A37,webquery!S:V,2,FALSE))) -> 2 | D37: =VLOOKUP($A37,webquery!$S:V,4,FALSE) -> 18 | E37: 1.5 | G37: =BLANKS!D36 -> Tyrrell Hatton | H37: =BLANKS!E36 -> 1 | I37: =VALUE(IF($G37="","",VLOOKUP($G37,webquery!S:V,2,FALSE))) -> 14 | J37: =VLOOKUP($G37,webquery!$S:$V,4,FALSE) -> 18 | K37: 1.5 | M37: =BLANKS!G36 -> 0
A38: =BLANKS!A37 -> Bill Haas | B38: =BLANKS!B37 -> 7 | C38: =VALUE(IF($A38="","",VLOOKUP($A38,webquery!S:V,2,FALSE))) -> 3 | D38: =VLOOKUP($A38,webquery!$S:V,4,FALSE) -> 18 | E38: 1.5 | G38: =BLANKS!D37 -> Tommy Fleetwood | H38: =BLANKS!E37 -> 4 | I38: =VALUE(IF($G38="","",VLOOKUP($G38,webquery!S:V,2,FALSE))) -> 8 | J38: =VLOOKUP($G38,webquery!$S:$V,4,FALSE) -> 18 | K38: 1.5 | M38: =BLANKS!G37 -> 0
A39: =BLANKS!A38 -> Alex Noren | B39: =BLANKS!B38 -> 6 | C39: =VALUE(IF($A39="","",VLOOKUP($A39,webquery!S:V,2,FALSE))) -> 8 | D39: =VLOOKUP($A39,webquery!$S:V,4,FALSE) -> 18 | E39: 1.5 | G39: =BLANKS!D38 -> Soren Kjeldsen | H39: =BLANKS!E38 -> 3 | I39: =VALUE(IF($G39="","",VLOOKUP($G39,webquery!S:V,2,FALSE))) -> 1 | J39: =VLOOKUP($G39,webquery!$S:$V,4,FALSE) -> 18 | K39: 1.5 | M39: =BLANKS!G38 -> 0
A40: Best 3 | C40: =IF(ISERROR(SMALL(C35:C39,1)+SMALL(C35:C39,2)+SMALL(C35:C39,3)),"",SMALL(C35:C39,1)+SMALL(C35:C39,2)+SMALL(C35:C39,3)) -> 2 | D40: =IF(ISERROR(C40-B34/100),"",C40-B34/100) -> 1.942 | G40: Best 3 | I40: =IF(ISERROR(SMALL(I35:I39,1)+SMALL(I35:I39,2)+SMALL(I35:I39,3)),"",SMALL(I35:I39,1)+SMALL(I35:I39,2)+SMALL(I35:I39,3)) -> 12 | J40: =IF(ISERROR(I40-H34/100),"",I40-H34/100) -> 11.962 | M40: Best 3
A41: Running position | C41: =VLOOKUP(A34,ranks!$C$4:$G$14,4,FALSE) -> 3 | D41: =VLOOKUP(A34,ranks!$C$4:$G$14,5,FALSE) -> 3 | E41: adj for pick | G41: Running position | I41: =VLOOKUP(G34,ranks!$C$4:$G$14,4,FALSE) -> 8 | J41: =VLOOKUP(G34,ranks!$C$4:$G$14,5,FALSE) -> 8 | K41: adj for pick | M41: Running position
A43: To get the correct tee-times you need to make sure you enter the right day of play at the top
A44: Click on The Open logo to update
